Workbook

Sheet LEA Name List (hidden)
A3: SAMPLE DISTRICT - 9999
A4: ACADEMICS PLUS - 6040
A5: ACADEMIES OF MATH & SCIENCE (AMS) - 6065
A6: ALMA - 1701
A7: ALPENA -0501
A8: ARKADELPHIA - 1002
A9: ARKANSAS ARTS ACADEMY - 0440
A10: ARKANSAS CONNECTIONS ACADEMY - 0444
A11: ARKANSAS LIGHTHOUSE ACADEMIES - 6050
A12: ARKANSAS SCHOOL FOR THE DEAF AND BLIND - 6093
A13: ARKANSAS VIRTUAL ACADEMY - 6043
A14: ARMOREL - 4701
A15: ASHDOWN - 4101
A16: ATKINS - 5801
A17: AUGUSTA - 7401
A18: BALD KNOB - 7301
A19: BARTON - 5401
A20: BATESVILLE - 3201
A21: BAUXITE - 6301
A22: BAY - 1601
A23: BEARDEN - 5201
A24: BEEBE - 7302
A25: BENTON - 6302
A26: BENTONVILLE - 0401
A27: BERGMAN - 0502
A28: BERRYVILLE - 0801
A29: BISMARCK - 3001
A30: BLEVINS - 2901
A31: BLYTHEVILLE - 4702
A32: BOONEVILLE - 4201
A33: BRADFORD - 7303
A34: BRINKLEY - 4801
A35: BROOKLAND - 1603
A36: BRYANT - 6303
A37: BUFFALO ISLAND CENTRAL - 1605
A38: CABOT - 4304
A39: CADDO HILLS - 4901
A40: CALICO ROCK - 3301
A41: CAMDEN-FAIRVIEW - 5204
A42: CARLISLE - 4303
A43: CAVE CITY - 6802
A44: CEDAR RIDGE - 3212
A45: CEDARVILLE - 1712
A46: CENTERPOINT - 5502
A47: CHARLESTON - 2402
A48: CLARENDON - 4802
A49: CLARKSVILLE - 3601
A50: CLEVELAND COUNTY - 1305
A51: CLINTON - 7102
A52: CONCORD - 1201
A53: CONWAY - 2301
A54: CORNING - 1101
A55: COSSATOT RIVER - 5707
A56: COTTER - 0302
A57: COUNTY LINE - 2403
A58: CROSS COUNTY - 1901
A59: CROSSETT - -0201
A60: CUTTER-MORNING STAR - 2601
A61: DANVILLE - 7503
A62: DARDANELLE - 7504
A63: DECATUR - 0402
A64: DEER/MT. JUDEA - 5106
A65: DEQUEEN - 6701
A66: DERMOTT - 0901
A67: DES ARC - 5901
A68: DEWITT - 0101
A69: DIERKS - 3102
A70: DOVER - 5802
A71: DREW CENTRAL - 2202
A72: DUMAS - 2104
A73: EARLE - 1802
A74: EAST END - 5301
A75: EAST POINSETT COUNTY - 5608
A76: EL DORADO - 7001
A77: ELKINS - 7201
A78: EMERSON-TAYLOR-BRADLEY - 1408
A79: ENGLAND - 4302
A80: ESTEM - 6047
A81: EUREKA SPRINGS - 0802
A82: EXALT ACADEMY OF SOUTHWEST LITTLE ROCK - 6055
A83: FARMINGTON - 7202
A84: FAYETTEVILLE - 7203
A85: FLIPPIN - 4501
A86: FORDYCE - 2002
A87: FOREMAN - 4102
A88: FORREST CITY - 6201
A89: FORT SMITH - 6601
A90: FOUKE - 4603
A91: FOUNDERS CLASSICAL ACADEMY - 0442
A92: FOUNTAIN LAKE - 2602
A93: FRIENDSHIP ASPIRE ACADEMIES ARKANSAS - 3544
A94: FUTURE SCHOOL OF FORT SMITH - 6040
A95: GARFIELD SCHOLARS ACADEMY- 0448
A96: GENOA CENTRAL - 4602
A97: GENTRY - 0403
A98: GLEN ROSE - 3002
A99: GOSNELL - 4708
A100: GRADUATE ARKANSAS - 6052
A101: GRAVETTE - 0404
A102: GREEN FOREST - 0803
A103: GREENBRIER - 2303
A104: GREENE COUNTY TECH - 2807
A105: GREENLAND - 7204
A106: GREENWOOD - 6602
A107: GURDON - 1003
A108: GUY-PERKINS - 2304
A109: HACKETT - 6603
A110: HAMBURG - 0203
A111: HAMPTON - 0701
A112: HARMONY GROVE - 5205
A113: HARMONY GROVE - 6304
A114: HARRISBURG - 5602
A115: HARRISON - 0503
A116: HASS HALL ACADEMY - 7240
A117: HAZEN - 5903
A118: HEBER SPRINGS - 1202
A119: HECTOR - 5803
A120: HELENA-W HELENA - 5403
A121: HERMITAGE - 0601
A122: HIGHLAND - 6804
A123: HILLCREST - 3809
A124: HOPE - 2903
A125: HORATIO - 6703
A126: HOT SPRINGS - 2603
A127: HOXIE - 3804
A128: HUNTSVILLE - 4401
A129: IMBODEN AREA CHARTER SCHOOL - 3840
A130: INSTITUTE FOR THE CREATIVE ARTS - 6641
A131: IZARD COUNTY CONSOLIDATED - 3306
A132: JACKSON COUNTY - 3405
A133: JACKSONVILLE NORTH PULASKI - 6004
A134: JASPER - 5102
A135: JESSIEVILLE - 2604
A136: JONESBORO - 1608
A137: JUNCTION CITY - 7003
A138: KIPP DELTA - 5440
A139: KIRBY - 5503
A140: LAFAYETTE COUNTY - 3704
A141: LAKE HAMILTON - 2605
A142: LAKESIDE (CHICOT) - 0903
A143: LAKESIDE (GARLAND) - 2606
A144: LAMAR -3604
A145: LAVACA - 6605
A146: LAWRENCE COUNTY - 3810
A147: LEAD HILL - 0506
A148: LEE COUNTY - 3904
A149: LINCOLN - 7205
A150: LISA ACADEMY - 6041
A151: LITTLE ROCK - 6001
A152: LONOKE - 4301
A153: MAGAZINE - 4202
A154: MAGNET COVE - 3003
A155: MAGNOLIA - 1402
A156: MALVERN - 3004
A157: MAMMOTH SPRING - 2501
A158: MANILA - 4712
A159: MANSFIELD 6606
A160: MARION - 1804
A161: MARKED TREE - 5604
A162: MARMADUKE - 2803
A163: MARVELL-ELAINE - 5404
A164: MAYFLOWER - 2305
A165: MAYNARD - 6102
A166: MCCRORY - 7403
A167: MCGEHEE - 2105
A168: MELBOURNE - 3302
A169: MENA - 5703
A170: MIDLAND - 3211
A171: MINERAL SPRINGS - 3104
A172: MONTICELLO - 2203
A173: MOUNT IDA - 4902
A174: MOUNT VERNON/ENOLA - 2306
A175: MOUNTAIN HOME - 0303
A176: MOUNTAIN PINE - 2607
A177: MOUNTAIN VIEW - 6901
A178: MOUNTAINBURG - 1703
A179: MULBERRY - 1704
A180: NASHVILLE - 3105
A181: NEMO VISTA - 1503
A182: NETTLETON - 1611
A183: NEVADA - 5008
A184: NEWPORT - 3403
A185: NORFORK - 0304
A186: NORTH LITTLE ROCK - 6002
A187: OMAHA - 0504
A188: OSCEOLA - 4713
A189: OUACHITA - 3005
A190: OUACHITA RIVER - 5706
A191: OZARK - 2404
A192: OZARK MOUNTAIN - 6505
A193: PALESTINE-WHEATLEY - 6205
A194: PANGBURN - 7309
A195: PARAGOULD - 2808
A196: PARIS - 4203
A197: PARKERS CHAPEL - 7007
A198: PEA RIDGE -0407
A199: PERRYVILLE - 5303
A200: PIGGOTT - 1104
A201: PINE BLUFF - 3505
A202: POCAHONTAS - 6103
... 58 more rows

Sheet Guidance
A1: Purpose:
A2: The AR App guides districts in creating a district wide Strategic Plan to support student learning outcomes. Once districts identify their priorities in the AR App, Superintendents, along with their AR App Team, must determine how to implement those priorities. The most direct way is to focus on how the district develops their budget. This tool is designed to guide Superintendents and their AR App Teams in budgeting thier federal and state funding sources to support the district's Strategic Plan.
A4: How to use this tool:
A5: Step 1: Superintendents and their AR App Team review their district's AR App to determine what expenditures are needed to support the district's Strategic Plan developed through the Ar App.
A6: Step 2: Federal/State program coordinators identify possible expenditures that support the implementation of the district's Strategic Plan developed through the AR App.
A7: Step 3: If needed Federal/State program coordinators propose what the district could consider not funding in order to meet the requirements of the AR App developed Strategic Plan.
A8: Step 4: Superintendents develop a budget from the available options and funding sources that support the Strategic Plan developed through the Ar App.
A10: Resources:
A11: AR APP Website
A12: Student Special Needs Funding Rules

Sheet Budget Overview
A2: SAMPLE DISTRICT - 9999
A3: =RIGHT(A2,4) -> 9999
A4: Fund Source | B4: Previous Year Carryover | C4: Current Year Allocation | D4: Total Budgeted | E4: Difference (Amount Not Budgeted) (Amount Over Budgeted)
A5: ABC- 2365 | B5: =IFERROR(--_xlfn.XLOOKUP($A$3,Carryover!$A$2:$A$260, Carryover!$G$2:$G$260), 0) -> 0 | C5: =IFERROR(--_xlfn.XLOOKUP($A$3,Allocation!$A$2:$A$260, Allocation!$G$2:$G$260), 0) -> 0 | D5: =SUMIF('AR APP Budget Sheet'!$E:$E,'Budget Overview'!A5,'AR APP Budget Sheet'!$C:$C) -> 0 | E5: =B5+C5-D5 -> 0
A6: ALE- 2275 | B6: =IFERROR(--_xlfn.XLOOKUP($A$3,Carryover!$A$2:$A$260, Carryover!$C$2:$C$260), 0) -> 3627.93 | C6: =IFERROR(--_xlfn.XLOOKUP($A$3,Allocation!$A$2:$A$260, Allocation!$C$2:$C$260), 0) -> 39351 | D6: =SUMIF('AR APP Budget Sheet'!$E:$E,'Budget Overview'!A6,'AR APP Budget Sheet'!$C:$C) -> 0 | E6: =B6+C6-D6 -> 42978.93
A7: ELL- 2276 | B7: =IFERROR(--_xlfn.XLOOKUP($A$3,Carryover!$A$2:$A$260, Carryover!$D$2:$D$260), 0) -> 2314.13 | C7: =IFERROR(--_xlfn.XLOOKUP($A$3,Allocation!$A$2:$A$260, Allocation!$D$2:$D$260), 0) -> 80886 | D7: =SUMIF('AR APP Budget Sheet'!$E:$E,'Budget Overview'!A7,'AR APP Budget Sheet'!$C:$C) -> 0 | E7: 83200.13
A8: ESA- 2281 | B8: =IFERROR(--_xlfn.XLOOKUP($A$3,Carryover!$A$2:$A$260, Carryover!$E$2:$E$260), 0) -> 12745.31 | C8: =IFERROR(--_xlfn.XLOOKUP($A$3,Allocation!$A$2:$A$260, Allocation!$E$2:$E$260), 0) -> 485276 | D8: =SUMIF('AR APP Budget Sheet'!$E:$E,'Budget Overview'!A8,'AR APP Budget Sheet'!$C:$C) -> 0 | E8: 498021.31
A9: PD- 2223 | B9: =IFERROR(--_xlfn.XLOOKUP($A$3,Carryover!$A$2:$A$260, Carryover!$F$2:$F$260), 0) -> 175.59 | C9: =IFERROR(--_xlfn.XLOOKUP($A$3,Allocation!$A$2:$A$260, Allocation!$F$2:$F$260), 0) -> 21190 | D9: =SUMIF('AR APP Budget Sheet'!$E:$E,'Budget Overview'!A9,'AR APP Budget Sheet'!$C:$C) -> 0 | E9: 21365.59
A10: Title I-A 6501 | B10: =IFERROR(--_xlfn.XLOOKUP($A$3,Carryover!$A$2:$A$260, Carryover!$O$2:$O$260), 0) -> 20803.91 | C10: =IFERROR(--_xlfn.XLOOKUP($A$3,Allocation!$A$2:$A$260, Allocation!$O$2:$O$260), 0) -> 139236.78 | D10: =SUMIF('AR APP Budget Sheet'!$E:$E,'Budget Overview'!A10,'AR APP Budget Sheet'!$C:$C) -> 0 | E10: 160040.69
A11: Title I-C 6502 | B11: =IFERROR(--_xlfn.XLOOKUP($A$3,Carryover!$A$2:$A$260, Carryover!$P$2:$P$260), 0) -> 8428 | C11: =IFERROR(--_xlfn.XLOOKUP($A$3,Allocation!$A$2:$A$260, Allocation!$P$2:$P$260), 0) -> 26393.82 | D11: =SUMIF('AR APP Budget Sheet'!$E:$E,'Budget Overview'!A11,'AR APP Budget Sheet'!$C:$C) -> 0 | E11: 34821.82
A12: Title I-D 6510 | B12: =IFERROR(--_xlfn.XLOOKUP($A$3,Carryover!$A$2:$A$260, Carryover!$Q$2:$Q$260), 0) -> 238.78 | C12: =IFERROR(--_xlfn.XLOOKUP($A$3,Allocation!$A$2:$A$260, Allocation!$Q$2:$Q$260), 0) -> 96918.66 | D12: =SUMIF('AR APP Budget Sheet'!$E:$E,'Budget Overview'!A12,'AR APP Budget Sheet'!$C:$C) -> 0 | E12: 97157.44
A13: Title II- 6756 | B13: =IFERROR(--_xlfn.XLOOKUP($A$3,Carryover!$A$2:$A$260, Carryover!$R$2:$R$260), 0) -> 4518.98 | C13: =IFERROR(--_xlfn.XLOOKUP($A$3,Allocation!$A$2:$A$260, Allocation!$R$2:$R$260), 0) -> 27611.89 | D13: =SUMIF('AR APP Budget Sheet'!$E:$E,'Budget Overview'!A13,'AR APP Budget Sheet'!$C:$C) -> 0 | E13: 32130.87
A14: Title III-ESOL- 6761 | B14: =IFERROR(--_xlfn.XLOOKUP($A$3,Carryover!$A$2:$A$260, Carryover!$S$2:$S$260), 0) -> 11657.27 | C14: =IFERROR(--_xlfn.XLOOKUP($A$3,Allocation!$A$2:$A$260, Allocation!$S$2:$S$260), 0) -> 23604.54 | D14: =SUMIF('AR APP Budget Sheet'!$E:$E,'Budget Overview'!A14,'AR APP Budget Sheet'!$C:$C) -> 0 | E14: 35261.81
A15: Title IV- 6786 | B15: =IFERROR(--_xlfn.XLOOKUP($A$3,Carryover!$A$2:$A$260, Carryover!$T$2:$T$260), 0) -> 4250.38 | C15: =IFERROR(--_xlfn.XLOOKUP($A$3,Allocation!$A$2:$A$260, Allocation!$T$2:$T$260), 0) -> 10784.57 | D15: =SUMIF('AR APP Budget Sheet'!$E:$E,'Budget Overview'!A15,'AR APP Budget Sheet'!$C:$C) -> 0 | E15: 15034.95
A16: Title V- 6784 | B16: =IFERROR(--_xlfn.XLOOKUP($A$3,Carryover!$A$2:$A$260, Carryover!$U$2:$U$260), 0) -> 200 | C16: =IFERROR(--_xlfn.XLOOKUP($A$3,Allocation!$A$2:$A$260, Allocation!$U$2:$U$260), 0) -> 1299.94 | D16: =SUMIF('AR APP Budget Sheet'!$E:$E,'Budget Overview'!A16,'AR APP Budget Sheet'!$C:$C) -> 0 | E16: 1499.94
A17: Medicaid - 6750 | B17: =IFERROR(--_xlfn.XLOOKUP($A$3,Carryover!$A$2:$A$260, Carryover!$H$2:$H$260), 0) -> 0 | C17: =IFERROR(--_xlfn.XLOOKUP($A$3,Allocation!$A$2:$A$260, Allocation!$H$2:$H$260), 0) -> 0 | D17: =SUMIF('AR APP Budget Sheet'!$E:$E,'Budget Overview'!A17,'AR APP Budget Sheet'!$C:$C) -> 0 | E17: =B17+C17-D17 -> 0
A18: ARMAC- 6752 | B18: =IFERROR(--_xlfn.XLOOKUP($A$3,Carryover!$A$2:$A$260, Carryover!$I$2:$I$260), 0) -> 0 | C18: =_xlfn.XLOOKUP($A$3,Allocation!$A$2:$A$260, Allocation!$I$2:$I$260) -> 0 | D18: =SUMIF('AR APP Budget Sheet'!$E:$E,'Budget Overview'!A18,'AR APP Budget Sheet'!$C:$C) -> 0 | E18: =B18+C18-D18 -> 0
A19: State EC SPED Budget - 2260 | B19: =IFERROR(--_xlfn.XLOOKUP($A$3, Allocation!$A$3:$A$260, Allocation!$N$3:$N$260), 0) -> 17644 | C19: =IFERROR(--_xlfn.XLOOKUP($A$3,Allocation!$A$2:$A$260, Allocation!$N$2:$N$260), 0) -> 17644 | D19: =SUMIF('AR APP Budget Sheet'!$E:$E,'Budget Overview'!A19,'AR APP Budget Sheet'!$C:$C) -> 0 | E19: =B19+C19-D19 -> 35288
A20: IDEA Part B (3-5) Budget - 6710 | B20: =IFERROR(--_xlfn.XLOOKUP($A$3, Carryover!$A$3:$A$260, Carryover!$M$3:$M$260), 0) -> 28.69 | C20: =IFERROR(--_xlfn.XLOOKUP($A$3,Allocation!$A$2:$A$260, Allocation!$M$2:$M$260), 0) -> 5729.96 | D20: =SUMIF('AR APP Budget Sheet'!$E:$E,'Budget Overview'!A20,'AR APP Budget Sheet'!$C:$C) -> 0 | E20: =B20+C20-D20 -> 5758.65
A21: IDEA Part B (3-21) Budget - 6702 | B21: =IFERROR(--_xlfn.XLOOKUP($A$3,Carryover!$A$2:$A$260, Carryover!$V$2:$V$260), 0) -> 51686.79 | C21: =IFERROR(--_xlfn.XLOOKUP($A$3,Allocation!$A$2:$A$260, Allocation!$V$2:$V$260), 0) -> 164607.6 | D21: =SUMIF('AR APP Budget Sheet'!$E:$E,'Budget Overview'!A21,'AR APP Budget Sheet'!$C:$C) -> 0 | E21: =B21+C21-D21 -> 216294.39
A22: GT Required Expenditure | B22: =IFERROR(--_xlfn.XLOOKUP($A$3,Carryover!$A$2:$A$260, Carryover!$K$2:$K$260), 0) -> 0 | C22: =IFERROR(--_xlfn.XLOOKUP($A$3,Allocation!$A$2:$A$260, Allocation!$K$2:$K$260), 0) -> 32933.11 | D22: =SUMIF('AR APP Budget Sheet'!$E:$E,'Budget Overview'!A22,'AR APP Budget Sheet'!$C:$C) -> 0 | E22: 32933.11
A23: Grant | D23: =SUMIF('AR APP Budget Sheet'!$E:$E,'Budget Overview'!A23,'AR APP Budget Sheet'!$C:$C) -> 0 | E23: 0
A24: Operating | D24: =SUMIF('AR APP Budget Sheet'!$E:$E,'Budget Overview'!A24,'AR APP Budget Sheet'!$C:$C) -> 0 | E24: 0
A25: Other | D25: =SUMIF('AR APP Budget Sheet'!$E:$E,'Budget Overview'!A25,'AR APP Budget Sheet'!$C:$C) -> 0 | E25: 0

Sheet AR APP Budget Sheet
A1: ='Budget Overview'!A2 -> SAMPLE DISTRICT - 9999
B3: Step 1: Proposed Purchase | C3: Estimated Cost | D3: Is this a new expenditure? | E3: Step 2: Source of Funds | F3: Step 3: Proposed Cut | G3: Step 3: Estimated Cost | H3: Step 3: Source of Funds
A4: Improving Academic Outcomes
A6: Priority 1.1
A7: Identify High Quality Instructional Materials (HQIM) for core instruction in literacy and math. | I7: =+$A$6 -> Priority 1.1 | J7: =#REF! -> 
I11: =+$A$6 -> Priority 1.1 | J11: =#REF! -> 
I12: Priority 1.1 | J12: =#REF! -> 
I13: Priority 1.1 | J13: =#REF! -> 
A15: Priority 1.2
A16: Identify Professional Learning | I16: =$A$15 -> Priority 1.2 | J16: =$A$16 -> Identify Professional Learning
I17: Priority 1.2 | J17: Identify Professional Learning
I18: Priority 1.2 | J18: Identify Professional Learning
I20: Priority 1.2 | J20: Identify Professional Learning
I21: Priority 1.2 | J21: Identify Professional Learning
I22: Priority 1.2 | J22: Identify Professional Learning
I23: Priority 1.2 | J23: Identify Professional Learning
A25: Priority 1.3
A26: Identify High Quality Supplemental Instructional Materials | I26: =$A$25 -> Priority 1.3 | J26: =$A$26 -> Identify High Quality Supplemental Instructional Materials
I27: Priority 1.3 | J27: Identify High Quality Supplemental Instructional Materials
I28: Priority 1.3 | J28: Identify High Quality Supplemental Instructional Materials
I29: Priority 1.3 | J29: Identify High Quality Supplemental Instructional Materials
I30: Priority 1.3 | J30: Identify High Quality Supplemental Instructional Materials
I31: Priority 1.3 | J31: Identify High Quality Supplemental Instructional Materials
I32: Priority 1.3 | J32: Identify High Quality Supplemental Instructional Materials
A34: Priority 1.4
A35: How is the district supporting teachers and building administrators to improve literacy instruction aligned with the Science of Reading (SoR)? | I35: =$A$34 -> Priority 1.4 | J35: =$A$35 -> How is the district supporting teachers and building administrators to improve literacy instruction aligned with the Science of Reading (SoR)?
I36: Priority 1.4 | J36: How is the district supporting teachers and building administrators to improve literacy instruction aligned with the Science of Reading (SoR)?
I37: Priority 1.4 | J37: How is the district supporting teachers and building administrators to improve literacy instruction aligned with the Science of Reading (SoR)?
I38: Priority 1.4 | J38: How is the district supporting teachers and building administrators to improve literacy instruction aligned with the Science of Reading (SoR)?
I39: Priority 1.4 | J39: How is the district supporting teachers and building administrators to improve literacy instruction aligned with the Science of Reading (SoR)?
I40: Priority 1.4 | J40: How is the district supporting teachers and building administrators to improve literacy instruction aligned with the Science of Reading (SoR)?
I41: Priority 1.4 | J41: How is the district supporting teachers and building administrators to improve literacy instruction aligned with the Science of Reading (SoR)?
A43: Priority 1.5
A44: What supports will the district provide general education teachers to ensure students with disabilities and English Learners are able to access core instruction? | I44: =$A$43 -> Priority 1.5 | J44: =$A$44 -> What supports will the district provide general education teachers to ensure students with disabilities and English Learners are able to access core instruction?
I45: Priority 1.5 | J45: What supports will the district provide general education teachers to ensure students with disabilities and English Learners are able to access core instruction?
I46: Priority 1.5 | J46: What supports will the district provide general education teachers to ensure students with disabilities and English Learners are able to access core instruction?
I47: Priority 1.5 | J47: What supports will the district provide general education teachers to ensure students with disabilities and English Learners are able to access core instruction?
I48: Priority 1.5 | J48: What supports will the district provide general education teachers to ensure students with disabilities and English Learners are able to access core instruction?
I49: Priority 1.5 | J49: What supports will the district provide general education teachers to ensure students with disabilities and English Learners are able to access core instruction?
I51: Priority 1.5 | J51: What supports will the district provide general education teachers to ensure students with disabilities and English Learners are able to access core instruction?
A52: Supplemental Supports
A53: Priority 1.8-1.9
A54: What accelerated learning opportunities will be offered to students next year? What supplemental supports are available to increase access to and success in accelerated learning opportunities? | B54: Elementary: | I54: =$A$53 -> Priority 1.8-1.9 | J54: =$A$54 -> What accelerated learning opportunities will be offered to students next year? What supplemental supports are available to increase access to and success in accelerated learning opportunities?
I55: Priority 1.8-1.9 | J55: What accelerated learning opportunities will be offered to students next year? What supplemental supports are available to increase access to and success in accelerated learning opportunities?
I56: Priority 1.8-1.9 | J56: What accelerated learning opportunities will be offered to students next year? What supplemental supports are available to increase access to and success in accelerated learning opportunities?
B57: Middle: | I57: Priority 1.8-1.9 | J57: What accelerated learning opportunities will be offered to students next year? What supplemental supports are available to increase access to and success in accelerated learning opportunities?
I58: Priority 1.8-1.9 | J58: What accelerated learning opportunities will be offered to students next year? What supplemental supports are available to increase access to and success in accelerated learning opportunities?
I59: Priority 1.8-1.9 | J59: What accelerated learning opportunities will be offered to students next year? What supplemental supports are available to increase access to and success in accelerated learning opportunities?
B60: High School: | I60: Priority 1.8-1.9 | J60: What accelerated learning opportunities will be offered to students next year? What supplemental supports are available to increase access to and success in accelerated learning opportunities?
I61: Priority 1.8-1.9 | J61: What accelerated learning opportunities will be offered to students next year? What supplemental supports are available to increase access to and success in accelerated learning opportunities?
A63: Priority 1.10-1.11
A64: Describe supplemental academic services and wrap-around supports for the following: | B64: ALE: | I64: =$A$63 -> Priority 1.10-1.11 | J64: =$A$64 -> Describe supplemental academic services and wrap-around supports for the following:
B65: SPED: | I65: Priority 1.10-1.11 | J65: Describe supplemental academic services and wrap-around supports for the following:
B66: EL (LIEP): | I66: Priority 1.10-1.11 | J66: Describe supplemental academic services and wrap-around supports for the following:
B67: MIGRANT: | I67: Priority 1.10-1.11 | J67: Describe supplemental academic services and wrap-around supports for the following:
B68: Title I: | I68: Priority 1.10-1.11 | J68: Describe supplemental academic services and wrap-around supports for the following:
I69: Priority 1.10-1.11 | J69: Describe supplemental academic services and wrap-around supports for the following:
I70: Priority 1.10-1.11 | J70: Describe supplemental academic services and wrap-around supports for the following:
A71: Transitions or Extended Opportunities
A72: Priority 1.12
A73: Describe your transition strategies for students. | B73: Pre-K to Kindergarten | I73: =$A$72 -> Priority 1.12 | J73: =$A$73 -> Describe your transition strategies for students.
I74: Priority 1.12 | J74: Describe your transition strategies for students.
B75: Elementary to Middle/Junior High | I75: Priority 1.12 | J75: Describe your transition strategies for students.
I76: Priority 1.12 | J76: Describe your transition strategies for students.
I77: Priority 1.12 | J77: Describe your transition strategies for students.
B78: High School to Postsecondary/Career/Military | I78: Priority 1.12 | J78: Describe your transition strategies for students.
I79: Priority 1.12 | J79: Describe your transition strategies for students.
A81: Priority 1.13
A82: How will the district implement Student Success Plans for students in grades 8-12? | I82: =$A$81 -> Priority 1.13 | J82: =$A$82 -> How will the district implement Student Success Plans for students in grades 8-12?
I83: Priority 1.13 | J83: How will the district implement Student Success Plans for students in grades 8-12?
I84: Priority 1.13 | J84: How will the district implement Student Success Plans for students in grades 8-12?
I85: Priority 1.13 | J85: How will the district implement Student Success Plans for students in grades 8-12?
I86: Priority 1.13 | J86: How will the district implement Student Success Plans for students in grades 8-12?
I87: Priority 1.13 | J87: How will the district implement Student Success Plans for students in grades 8-12?
I88: Priority 1.13 | J88: How will the district implement Student Success Plans for students in grades 8-12?
A90: Priority 1.14-1.15
A91: What early childhood access and opportunities does your district provide for your community to ensure kindergarten readiness? What additional services does the district provide to early childhood at-risk subgroups? | B91: Economically Disadvantaged | I91: =$A$90 -> Priority 1.14-1.15 | J91: =$A$91 -> What early childhood access and opportunities does your district provide for your community to ensure kindergarten readiness? What additional services does the district provide to early childhood at-risk subgroups?
B92: SPED | I92: Priority 1.14-1.15 | J92: What early childhood access and opportunities does your district provide for your community to ensure kindergarten readiness? What additional services does the district provide to early childhood at-risk subgroups?
B93: EL | I93: Priority 1.14-1.15 | J93: What early childhood access and opportunities does your district provide for your community to ensure kindergarten readiness? What additional services does the district provide to early childhood at-risk subgroups?
B94: Migrant | I94: Priority 1.14-1.15 | J94: What early childhood access and opportunities does your district provide for your community to ensure kindergarten readiness? What additional services does the district provide to early childhood at-risk subgroups?
I95: Priority 1.14-1.15 | J95: What early childhood access and opportunities does your district provide for your community to ensure kindergarten readiness? What additional services does the district provide to early childhood at-risk subgroups?
I96: Priority 1.14-1.15 | J96: What early childhood access and opportunities does your district provide for your community to ensure kindergarten readiness? What additional services does the district provide to early childhood at-risk subgroups?
I97: Priority 1.14-1.15 | J97: What early childhood access and opportunities does your district provide for your community to ensure kindergarten readiness? What additional services does the district provide to early childhood at-risk subgroups?
A99: Priority 1.16
A100: For the 2025-26 school year, districts are required to offer at least one success-ready pathway aligned to the high-wage and high-growth requirement. Which success-ready pathway(s) will your district offer that aligns to these requirements?
A106: Family and Community Engagement
A107: Priority 1.17-1.18
A108: What actions and activities does the district provide to promote Family and Community Engagement? | I108: =$A$107 -> Priority 1.17-1.18 | J108: =$A$108 -> What actions and activities does the district provide to promote Family and Community Engagement?
I109: Priority 1.17-1.18 | J109: What actions and activities does the district provide to promote Family and Community Engagement?
I110: Priority 1.17-1.18 | J110: What actions and activities does the district provide to promote Family and Community Engagement?
I111: Priority 1.17-1.18 | J111: What actions and activities does the district provide to promote Family and Community Engagement?
I112: Priority 1.17-1.18 | J112: What actions and activities does the district provide to promote Family and Community Engagement?
I113: Priority 1.17-1.18 | J113: What actions and activities does the district provide to promote Family and Community Engagement?
I114: Priority 1.17-1.18 | J114: What actions and activities does the district provide to promote Family and Community Engagement?
A116: Improving Academic Outcomes Grand Total | C116: =SUM(C16:C114) -> 0
A117: Safe and Healthy Schools
A119: Priority 2.1
A120: How does the district promote and improve school climate? | I120: =$A$119 -> Priority 2.1 | J120: =$A$120 -> How does the district promote and improve school climate?
I121: Priority 2.1 | J121: How does the district promote and improve school climate?
I122: Priority 2.1 | J122: How does the district promote and improve school climate?
I123: Priority 2.1 | J123: How does the district promote and improve school climate?
I124: Priority 2.1 | J124: How does the district promote and improve school climate?
I125: Priority 2.1 | J125: How does the district promote and improve school climate?
I126: Priority 2.1 | J126: How does the district promote and improve school climate?
A128: Priority 2.2
A129: What is the district’s plan to provide access to mental health services? | I129: =$A$128 -> Priority 2.2 | J129: =$A$129 -> What is the district’s plan to provide access to mental health services?
I130: Priority 2.2 | J130: What is the district’s plan to provide access to mental health services?
I131: Priority 2.2 | J131: What is the district’s plan to provide access to mental health services?
I132: Priority 2.2 | J132: What is the district’s plan to provide access to mental health services?
I133: Priority 2.2 | J133: What is the district’s plan to provide access to mental health services?
I134: Priority 2.2 | J134: What is the district’s plan to provide access to mental health services?
I135: Priority 2.2 | J135: What is the district’s plan to provide access to mental health services?
A137: Priority 2.4
A138: How does the district progress monitor and support the students identified by the processes in the previous question? | I138: =$A$137 -> Priority 2.4 | J138: =$A$138 -> How does the district progress monitor and support the students identified by the processes in the previous question?
I139: Priority 2.4 | J139: How does the district progress monitor and support the students identified by the processes in the previous question?
I140: Priority 2.4 | J140: How does the district progress monitor and support the students identified by the processes in the previous question?
I141: Priority 2.4 | J141: How does the district progress monitor and support the students identified by the processes in the previous question?
I142: Priority 2.4 | J142: How does the district progress monitor and support the students identified by the processes in the previous question?
I143: Priority 2.4 | J143: How does the district progress monitor and support the students identified by the processes in the previous question?
I144: Priority 2.4 | J144: How does the district progress monitor and support the students identified by the processes in the previous question?
A146: Priority 2.5
A147: What efforts does the district take to reduce the overuse of discipline practices that remove students from the classroom? [ESEA § 1112(b)(11)] | I147: =$A$155 -> Priority 2.6-2.7 | J147: =$A$156 -> Health & Wellness
I148: Priority 2.6-2.7 | J148: Health & Wellness
I149: Priority 2.6-2.7 | J149: Health & Wellness
I150: Priority 2.6-2.7 | J150: Health & Wellness
I151: Priority 2.6-2.7 | J151: Health & Wellness
I152: Priority 2.6-2.7 | J152: Health & Wellness
I153: Priority 2.6-2.7 | J153: Health & Wellness
A155: Priority 2.6-2.7
A156: Health & Wellness | I156: =$A$155 -> Priority 2.6-2.7 | J156: =$A$156 -> Health & Wellness
I157: Priority 2.6-2.7 | J157: Health & Wellness
I158: Priority 2.6-2.7 | J158: Health & Wellness
I159: Priority 2.6-2.7 | J159: Health & Wellness
I160: Priority 2.6-2.7 | J160: Health & Wellness
I161: Priority 2.6-2.7 | J161: Health & Wellness
I162: Priority 2.6-2.7 | J162: Health & Wellness
A164: Safe and Healthy Schools Grand Total | C164: =SUM(C119:C162) -> 0
A165: Quality Educational Workforce
A167: Priority 3.3
A168: How does the district address any disparities that result in the above groups being taught at higher rates than other students by ineffective, inexperienced, or out-of-field teachers? [ESEA § 1112(b)(2)] | I168: =$A$167 -> Priority 3.3 | J168: =$A$168 -> How does the district address any disparities that result in the above groups being taught at higher rates than other students by ineffective, inexperienced, or out-of-field teachers? [ESEA § 1112(b)(2)]
I169: Priority 3.3 | J169: How does the district address any disparities that result in the above groups being taught at higher rates than other students by ineffective, inexperienced, or out-of-field teachers? [ESEA § 1112(b)(2)]
I170: Priority 3.3 | J170: How does the district address any disparities that result in the above groups being taught at higher rates than other students by ineffective, inexperienced, or out-of-field teachers? [ESEA § 1112(b)(2)]
I171: Priority 3.3 | J171: How does the district address any disparities that result in the above groups being taught at higher rates than other students by ineffective, inexperienced, or out-of-field teachers? [ESEA § 1112(b)(2)]
I172: Priority 3.3 | J172: How does the district address any disparities that result in the above groups being taught at higher rates than other students by ineffective, inexperienced, or out-of-field teachers? [ESEA § 1112(b)(2)]
I173: Priority 3.3 | J173: How does the district address any disparities that result in the above groups being taught at higher rates than other students by ineffective, inexperienced, or out-of-field teachers? [ESEA § 1112(b)(2)]
I174: Priority 3.3 | J174: How does the district address any disparities that result in the above groups being taught at higher rates than other students by ineffective, inexperienced, or out-of-field teachers? [ESEA § 1112(b)(2)]
A176: Priority 3.5
A177: What additional support does the district provide to educators who are unlicensed or teaching outside their area of expertise? | I177: =$A$176 -> Priority 3.5 | J177: =$A$177 -> What additional support does the district provide to educators who are unlicensed or teaching outside their area of expertise?
I178: Priority 3.5 | J178: What additional support does the district provide to educators who are unlicensed or teaching outside their area of expertise?
I179: Priority 3.5 | J179: What additional support does the district provide to educators who are unlicensed or teaching outside their area of expertise?
I180: Priority 3.5 | J180: What additional support does the district provide to educators who are unlicensed or teaching outside their area of expertise?
I181: Priority 3.5 | J181: What additional support does the district provide to educators who are unlicensed or teaching outside their area of expertise?
I182: Priority 3.5 | J182: What additional support does the district provide to educators who are unlicensed or teaching outside their area of expertise?
I183: Priority 3.5 | J183: What additional support does the district provide to educators who are unlicensed or teaching outside their area of expertise?
A185: Priority 3.6
A186: What additional compensation will the district offer for mentor teachers, lead/master designation, identified shortage areas, or greatest areas of need identified locally? [ESEA § 2103(b)] | I186: =$A$185 -> Priority 3.6 | J186: =$A$186 -> What additional compensation will the district offer for mentor teachers, lead/master designation, identified shortage areas, or greatest areas of need identified locally? [ESEA § 2103(b)]
I187: Priority 3.6 | J187: What additional compensation will the district offer for mentor teachers, lead/master designation, identified shortage areas, or greatest areas of need identified locally? [ESEA § 2103(b)]
I188: Priority 3.6 | J188: What additional compensation will the district offer for mentor teachers, lead/master designation, identified shortage areas, or greatest areas of need identified locally? [ESEA § 2103(b)]
I189: Priority 3.6 | J189: What additional compensation will the district offer for mentor teachers, lead/master designation, identified shortage areas, or greatest areas of need identified locally? [ESEA § 2103(b)]
I190: Priority 3.6 | J190: What additional compensation will the district offer for mentor teachers, lead/master designation, identified shortage areas, or greatest areas of need identified locally? [ESEA § 2103(b)]
I191: Priority 3.6 | J191: What additional compensation will the district offer for mentor teachers, lead/master designation, identified shortage areas, or greatest areas of need identified locally? [ESEA § 2103(b)]
I192: Priority 3.6 | J192: What additional compensation will the district offer for mentor teachers, lead/master designation, identified shortage areas, or greatest areas of need identified locally? [ESEA § 2103(b)]
A194: Quality Educational Workforce Grand Total | C194: =SUM(C167:C192) -> 0
A195: State Programs
A197: State Programs 1.1
A198: ALE Programs | I198: =$A$197 -> State Programs 1.1 | J198: =$A$198 -> ALE Programs
I199: State Programs 1.1 | J199: ALE Programs
I200: State Programs 1.1 | J200: ALE Programs
I201: State Programs 1.1 | J201: ALE Programs
I202: State Programs 1.1 | J202: ALE Programs
I203: State Programs 1.1 | J203: ALE Programs
A205: State Programs 1.2
A206: English Language Personnel | I206: =$A$205 -> State Programs 1.2 | J206: =$A$206 -> English Language Personnel
I207: State Programs 1.2 | J207: English Language Personnel
I208: State Programs 1.2 | J208: English Language Personnel
I209: State Programs 1.2 | J209: English Language Personnel
I210: State Programs 1.2 | J210: English Language Personnel
I211: State Programs 1.2 | J211: English Language Personnel
I212: State Programs 1.2 | J212: English Language Personnel
A214: State Programs 1.3-1.5
A215: Gifted & Talented Program | I215: =$A$214 -> State Programs 1.3-1.5 | J215: =$A$215 -> Gifted & Talented Program
I216: State Programs 1.3-1.5 | J216: Gifted & Talented Program
I217: State Programs 1.3-1.5 | J217: Gifted & Talented Program
I218: State Programs 1.3-1.5 | J218: Gifted & Talented Program
I219: State Programs 1.3-1.5 | J219: Gifted & Talented Program
I220: State Programs 1.3-1.5 | J220: Gifted & Talented Program
I221: State Programs 1.3-1.5 | J221: Gifted & Talented Program
A223: State Programs 1.6 ESA
A224: Does the school district intends to transfer ESA funds to other programs? | I224: =$A$223 -> State Programs 1.6 ESA | J224: =$A$224 -> Does the school district intends to transfer ESA funds to other programs?
I225: State Programs 1.6 ESA | J225: Does the school district intends to transfer ESA funds to other programs?
I226: State Programs 1.6 ESA | J226: Does the school district intends to transfer ESA funds to other programs?
I227: State Programs 1.6 ESA | J227: Does the school district intends to transfer ESA funds to other programs?
I228: State Programs 1.6 ESA | J228: Does the school district intends to transfer ESA funds to other programs?
I229: State Programs 1.6 ESA | J229: Does the school district intends to transfer ESA funds to other programs?
I230: State Programs 1.6 ESA | J230: Does the school district intends to transfer ESA funds to other programs?
A232: State Programs Grand Total | C232: =SUM(C197:C230) -> 0
A234: Other District Expenses
A235: Are there any other necessary purchases your district will make not aligned to the AR App priorities?
A242: Other Grand Total | C242: =SUM(C235:C241) -> 0

Sheet Funding Sources (hidden)
D1: Is this a new expenditure?
D2: Yes
D3: No
A5: P1.1 | B5: ESA- 2281
B6: Operating
B7: Grant
B8: Other
A9: P1.2 | B9: ALE- 2275
B10: ELL- 2276
B11: ESA- 2281
B12: Grant
B13: Operating
B14: PD- 2223
B15: Title I-A 6501
B16: Title II- 6756
B17: Title III-ESOL- 6761-ESOL
B18: IDEA Part B (3-21) Budget - 6702
B19: Title V- 6784
B20: Other
A21: P1.3 | B21: ALE- 2275
B22: ELL- 2276
B23: ESA- 2281
B24: Operating
B25: Title I-A 6501
B26: Title III-ESOL- 6761-ESOL
B27: Title IV- 6786
B28: Title V- 6784
B29: IDEA Part B (3-21) Budget - 6702
B30: Other
A31: P1.4 | B31: ESA- 2281
B32: Operating
B33: PD- 2223
B34: Title I-A 6501
B35: Title II- 6756
B36: Title V- 6784
B37: IDEA Part B (3-21) Budget - 6702
B38: Other
A39: P1.5 | B39: ELL- 2276
B40: ESA- 2281
B41: Operating
B42: PD- 2223
B43: Title I-A 6501
B44: Title II- 6756
B45: Title III-ESOL- 6761-ESOL
B46: Title V- 6784
B47: IDEA Part B (3-21) Budget - 6702
B48: Other
A49: P1.6 | B49: ESA- 2281
B50: Operating
B51: Title I-A 6501
B52: Title V- 6784
B53: IDEA Part B (3-21) Budget - 6702
B54: Other
A55: P1.7 | B55: ESA- 2281
B56: Operating
B57: Title I-A 6501
B58: Title V- 6784
B59: IDEA Part B (3-21) Budget - 6702
B60: Other
A61: P1.8 and P1.9 | B61: ESA- 2281
B62: Operating
B63: Title I-A 6501
B64: Title IV- 6786
B65: Title V- 6784
B66: IDEA Part B (3-21) Budget - 6702
B67: Other
A68: P1.10 and P1.11 | B68: ALE- 2275
B69: ELL- 2276
B70: ESA- 2281
B71: Operating
B72: Title I-A 6501
B73: Title I-C 6502
B74: Title IV- 6786
B75: Title V- 6784
B76: IDEA Part B (3-21) Budget - 6702
B77: Other
A78: P1.12 | B78: ESA- 2281
B79: Operating
B80: State EC SPED Budget - 2260
B81: Title I-A 6501
B82: Title I-C 6502
B83: Title V- 6784
B84: IDEA Part B (3-21) Budget - 6702
B85: Other
A86: P1.13 | B86: ELL- 2276
B87: ESA- 2281
B88: Operating
B89: Title I-A 6501
B90: Title I-C 6502
B91: Title III-ESOL- 6761-ESOL
B92: IDEA Part B (3-21) Budget - 6702
B93: Other
A94: P1.14 | B94: ABC- 2365
B95: ESA- 2281
B96: Operating
B97: State EC SPED Budget - 2260
B98: Title I-A 6501
B99: Title I-C 6502
B100: Title V- 6784
B101: IDEA Part B (3-5) Budget - 6710
B102: IDEA Part B (3-21) Budget - 6702
B103: Other
A104: P1.15 | B104: ABC- 2365
B105: ELL- 2276
B106: ESA- 2281
B107: Operating
B108: State EC SPED Budget - 2260
B109: Title I-A 6501
B110: Title I-C 6502
B111: Title III-ESOL- 6761-ESOL
B112: Title V- 6784
B113: IDEA Part B (3-5) Budget - 6710
B114: IDEA Part B (3-21) Budget - 6702
B115: Other
A116: P1.16 | B116: Operating
B117: Title I-A 6501
B118: Other
A119: P1.17 and P1.18 | B119: ESA- 2281
B120: Operating
B121: Title I-A 6501
B122: Title V- 6784
B123: IDEA Part B (3-5) Budget - 6710
B124: Other
A125: P1.19 | B125: ALE- 2275
B126: ELL- 2276
B127: ESA- 2281
B128: Operating
B129: Title I-A 6501
B130: Title V- 6784
B131: IDEA Part B (3-21) Budget - 6702
B132: Other
A134: P2.1 | B134: ARMAC- 6752- 6752
B135: ESA- 2281
B136: Operating
B137: Title I-A 6501
B138: Title IV- 6786
B139: Title V- 6784
B140: IDEA Part B (3-21) Budget - 6702
B141: Other
A142: P2.2 | B142: ARMAC- 6752
B143: ESA- 2281
B144: Operating
B145: Title I-A 6501
B146: Title IV- 6786
B147: Title V- 6784
B148: IDEA Part B (3-21) Budget - 6702
B149: Other
A150: P2.3 | B150: ARMAC- 6752
B151: ESA- 2281
B152: Operating
B153: Title I-A 6501
B154: Title IV- 6786
B155: Title V- 6784
B156: IDEA Part B (3-21) Budget - 6702
B157: Other
A158: P2.4 | B158: ARMAC- 6752
B159: ESA- 2281
B160: Operating
B161: Title I-A 6501
B162: Title IV- 6786
B163: Title V- 6784
B164: IDEA Part B (3-21) Budget - 6702
B165: Other
A166: P2.5 | B166: ALE- 2275
B167: ESA- 2281
B168: Operating
B169: PD- 2223
B170: Title I-A 6501
B171: Title IV- 6786
B172: Title V- 6784
B173: IDEA Part B (3-21) Budget - 6702
B174: Other
A175: 2.6 and 2.7 Health | B175: ARMAC- 6752
B176: ESA- 2281
B177: Operating
B178: Title I-A 6501
B179: Title IV- 6786
B180: Title V- 6784
B181: Other
A183: P3.1 | B183: ESA- 2281
B184: Operating
B185: Title I-A 6501
B186: Title II- 6756
B187: Title III-ESOL- 6761-ESOL
B188: Title V- 6784
B189: IDEA Part B (3-21) Budget - 6702
B190: Other
A191: P3.2 | B191: ESA- 2281
B192: Operating
B193: Title I-A 6501
B194: Title II- 6756
B195: Title III-ESOL- 6761-ESOL
B196: Title V- 6784
B197: IDEA Part B (3-21) Budget - 6702
B198: Other
A199: P3.3 | B199: ESA- 2281
B200: Operating
B201: Title I-A 6501
B202: Title II- 6756
B203: Title III-ESOL- 6761-ESOL
... 54 more rows

Sheet Carryover (hidden)
C1: 3 | D1: 4 | E1: 5 | F1: 6 | G1: 7 | H1: 8 | I1: 9 | J1: 11 | K1: 12 | L1: 13 | M1: 14 | N1: 15 | O1: 16 | P1: 17 | Q1: 18 | R1: 19 | S1: 20 | T1: 21 | U1: 22 | V1: 23
A2: District LEA | B2: District Name | C2: ALE: 2275 | D2: ELL: 2276 | E2: ESA: 2281 | F2: PD: 2223 | G2: ABC | H2: Medicaid: 6750 | I2: ARMAC: 6752 | J2: Grant | K2: GT Required Expenditure | L2: Operating | M2: Fed Early Childhood SPED: 6710 | N2: State Early Childhood SPED: 2260 | O2: Title I - A: 6501 | P2: Title I - C: 6502 | Q2: Title I - D: 6510 | R2: Title II: 6756 | S2: Title III-ESOL: 6761 | T2: Title IV: 6786 | U2: Title V: 6784 | V2: IDEA Part B: 6702
A3: 9999 | B3: Sample District | C3: 3627.93 | D3: 2314.13 | E3: 12745.31 | F3: 175.59 | M3: 28.69 | N3: 306.8 | O3: 20803.91 | P3: 8428 | Q3: 238.78 | R3: 4518.98 | S3: 11657.27 | T3: 4250.38 | U3: 200 | V3: 51686.79
A4: 0101 | B4: DEWITT | C4: 0 | D4: 4497.77 | E4: 40883.93 | F4: 16755.9 | M4: - | N4: 11919.49 | O4: 72701.64 | R4: 0 | U4: 1667.82 | V4: -
A5: 0104 | B5: STUTTGART | C5: 0 | D5: 0 | E5: 27683.41 | F5: 24557.92 | M5: - | N5: - | O5: 87438.69 | R5: 63139 | S5: 0 | T5: 5241.9 | U5: 4729.5 | V5: 66433.28
A6: 0201 | B6: CROSSETT | C6: 0 | D6: 897.46 | E6: 0 | F6: 1532.18 | M6: - | N6: - | O6: 21928.46 | R6: 0 | U6: 1544.06 | V6: 13818.11
A7: 0203 | B7: HAMBURG | C7: 2918.57 | D7: 2830 | E7: 26429 | F7: 62598.97 | M7: - | N7: - | O7: 32762.27 | P7: 33307.72 | R7: 19757.48 | S7: 13587.96 | U7: 1218.76 | V7: 38277.94
A8: 0302 | B8: COTTER | C8: 0 | D8: 16416.05 | E8: 34076.78 | F8: 22336.35 | M8: 3.06 | N8: - | O8: 167118.36 | R8: 0 | V8: -
A9: 0303 | B9: MOUNTAIN HOME | C9: 45216.04 | D9: 704 | E9: 2632.67 | F9: 117502.86 | M9: - | N9: - | O9: 179475.88 | R9: 58100.37 | V9: 15595.32
A10: 0304 | B10: NORFORK | C10: 0 | D10: 106648.22 | E10: 574.81 | F10: 2603.51 | M10: 3227.84 | N10: - | O10: 43678.36 | R10: 0 | T10: 240.41 | V10: 61000
A11: 0401 | B11: BENTONVILLE | C11: 185591.78 | D11: 0 | E11: 0 | F11: 152659.01 | M11: - | N11: - | O11: 145296.12 | Q11: 17551.67 | R11: 462998.97 | S11: 160849.45 | T11: 137864.02 | V11: 190517.78
A12: 0402 | B12: DECATUR | C12: 1188.76 | D12: 0 | E12: 10715.65 | F12: 0 | M12: 81.22 | N12: 6878.49 | O12: 2584.63 | R12: 0 | S12: 4445.37 | T12: 9082.22 | V12: 62443.41
A13: 0403 | B13: GENTRY | C13: 0 | D13: 0 | E13: 55643.35 | F13: 1870.2 | M13: 10636.48 | N13: 3781.32 | O13: 28676.44 | R13: 4301.86 | S13: 13492.87 | V13: 188350.21
A14: 0404 | B14: GRAVETTE | C14: 0 | D14: 0 | E14: 24840.34 | F14: 2843.47 | M14: 9476.92 | N14: 7868.1 | O14: 11044.33 | R14: 80839.85 | V14: 19677.12
A15: 0405 | B15: ROGERS | C15: 0 | D15: 66316.11 | E15: 402307.84 | F15: 0 | M15: 1140.51 | N15: - | O15: 332208.54 | R15: 113821.86 | S15: 207052.07 | V15: 289151.78
A16: 0406 | B16: SILOAM SPRINGS | C16: 0 | D16: 3888.17 | E16: 45595.64 | F16: 55131.08 | M16: - | N16: - | O16: 100257.92 | P16: 0 | R16: 33170.52 | S16: 32599.69 | T16: 4956.09 | V16: -
A17: 0407 | B17: PEA RIDGE | C17: 4021.95 | D17: 26589.41 | E17: 40316.54 | F17: 5913.56 | M17: - | N17: - | O17: 68061.42 | R17: 21080.71 | T17: 7496.64 | V17: 124903.87
A18: 0440 | B18: ARKANSAS ARTS ACADEMY | C18: 0 | D18: 4343.46 | E18: 27772.4 | F18: 12397.49 | M18: 6280.5 | N18: 34039.52 | O18: 31377.73 | R18: 0 | V18: 38578.28
A19: 0442 | B19: FOUNDERS CLASSICAL ACADEMY | C19: 0 | D19: 0 | E19: 3961.45 | F19: 38345.45 | M19: 2753.79 | N19: 306.8 | O19: 500 | R19: 0 | S19: 7971.35 | T19: 1956.82 | V19: 4480.04
A20: 0444 | B20: ARKANSAS CONNECTIONS ACADEMY | C20: 0 | D20: 0 | E20: 0 | F20: 0 | M20: - | O20: 88982.28 | R20: 0 | V20: 41517.76
A21: 0446 | B21: SCHOOL FOR ADVANCED STUDIES | C21: 0 | D21: 0 | E21: 0 | F21: 0 | M21: 7449.87 | V21: -
A22: 0448 | B22: GARFIELD SCHOLARS ACADEMY | C22: 0 | D22: 4237.61 | E22: 161.09 | F22: 3638 | M22: - | V22: -
A23: 0501 | B23: ALPENA | C23: 3627.93 | D23: 2314.13 | E23: 12745.31 | F23: 175.59 | M23: 1.87 | N23: - | O23: 23791.27 | R23: 2975.01 | T23: 1546.7 | V23: 655.69
A24: 0502 | B24: BERGMAN | C24: 5039.02 | D24: 0 | E24: 9692.61 | F24: 3522.96 | M24: - | N24: - | O24: 16439.63 | R24: 10247.01 | T24: 3472.59 | V24: 18745.91
A25: 0503 | B25: HARRISON | C25: 0 | D25: 785.41 | E25: 9028.59 | F25: 0 | M25: - | N25: - | O25: 5737.87 | R25: 572.1 | T25: 108.74 | V25: -
A26: 0504 | B26: OMAHA | C26: 675.72 | D26: 457.6 | E26: 7.9 | F26: 14539.85 | M26: 1.6 | N26: - | R26: 2489.03 | T26: 745.63 | V26: 4166.43
A27: 0505 | B27: VALLEY SPRINGS | C27: 1390.28 | D27: 4357 | E27: 0 | F27: 32238.71 | M27: - | N27: 732.35 | O27: 34682.43 | R27: 13942.26 | T27: 8671.13 | V27: -
A28: 0506 | B28: LEAD HILL | C28: 0 | D28: 0 | E28: 0 | F28: 0 | M28: 1686.37 | N28: 255.5 | O28: 7028.39 | R28: 0 | V28: 946.22
A29: 0601 | B29: HERMITAGE | C29: 0 | D29: 124210.32 | E29: 11300.9 | F29: 0 | M29: - | N29: 5971.32 | O29: 25035.45 | P29: 164248.53 | R29: 0 | V29: 10229.37
A30: 0602 | B30: WARREN | C30: 6803.86 | D30: 0 | E30: 68962.87 | F30: 12306.95 | M30: - | N30: - | O30: 241642.01 | P30: 70337.5 | R30: 0 | S30: 22142.29 | T30: 47324.55 | V30: 305208.85
A31: 0701 | B31: HAMPTON | C31: 1330.98 | D31: 0 | E31: 17812.11 | F31: 0 | M31: - | N31: - | O31: 7827.3 | R31: 2226.11 | V31: 1813.41
A32: 0801 | B32: BERRYVILLE | C32: 2948.77 | D32: 0 | E32: 156086.56 | F32: 13668.56 | M32: - | N32: 0.01 | O32: 80481.15 | P32: 8428 | R32: 23658.12 | S32: 15534.69 | V32: 6476.39
A33: 0802 | B33: EUREKA SPRINGS | C33: 0 | D33: 10542.8 | E33: 0 | F33: 0 | M33: - | N33: - | O33: 2729.34 | R33: 0 | V33: -
A34: 0803 | B34: GREEN FOREST | C34: 0 | D34: 4304.57 | E34: 17731.95 | F34: 0 | M34: - | N34: - | O34: 29794.6 | P34: 27036.14 | R34: 19902.28 | S34: 5785.01 | T34: 14416.52 | V34: 12960.31
A35: 0901 | B35: DERMOTT | C35: 0 | D35: 351.33 | E35: 5353.15 | F35: 1872.25 | M35: - | N35: 0.01 | O35: 48847.72 | R35: 0 | U35: 200 | V35: 3316.34
A36: 0903 | B36: LAKESIDE | C36: 440.28 | D36: 13253.4 | E36: 400 | F36: 0 | M36: - | N36: - | O36: 123658.53 | R36: 46477.61 | T36: 2744.08 | U36: 7598.5 | V36: 949.41
A37: 1002 | B37: ARKADELPHIA | C37: 0 | D37: 0 | E37: 44291.6 | F37: 4195.62 | M37: - | N37: - | O37: 55869.75 | R37: 0 | T37: 9007.93 | V37: 20527.76
A38: 1003 | B38: GURDON | C38: 0 | D38: 180.86 | E38: 0 | F38: 3045.62 | M38: - | N38: - | O38: 9999.04 | R38: 0 | V38: 5024.31
A39: 1101 | B39: CORNING | C39: 12164.74 | D39: 619.82 | E39: 19571.38 | F39: 0 | M39: - | N39: - | O39: 10346.22 | R39: 0 | V39: 151058.43
A40: 1104 | B40: PIGGOTT | C40: 702.36 | D40: 1432.3 | E40: 4522.51 | F40: 1650.67 | M40: - | N40: - | O40: 57127.87 | R40: 0 | U40: 862.07 | V40: 8743.78
A41: 1106 | B41: RECTOR | C41: 843.26 | D41: 4392 | E41: 0 | F41: 0 | M41: - | N41: - | O41: 305.3 | R41: 141.87 | T41: 67.97 | V41: 61965.07
A42: 1201 | B42: CONCORD | C42: 0 | D42: 0 | E42: 12426.08 | F42: 0 | M42: - | N42: - | O42: 60103.97 | R42: 0 | V42: 2699.77
A43: 1202 | B43: HEBER SPRINGS | C43: 0 | D43: 5360.62 | E43: 17117.43 | F43: 6289.5 | M43: - | N43: - | O43: 91837.93 | R43: 0 | U43: 2934.03 | V43: 65103.29
A44: 1203 | B44: QUITMAN | C44: 9125.07 | D44: 4071 | E44: 0 | F44: 0 | M44: 3.74 | N44: - | O44: 14324.83 | R44: 8718.36 | T44: 9992.83 | U44: - | V44: 89704.68
A45: 1204 | B45: WEST SIDE | C45: 0 | D45: 11836.57 | E45: 0 | F45: 0 | M45: - | N45: - | O45: 59946.03 | R45: 23954.43 | T45: 7058.83 | V45: 13985.46
A46: 1304 | B46: WOODLAWN | C46: 1133.17 | D46: 0 | E46: 4628.45 | F46: 0 | M46: - | N46: - | O46: 13413.98 | R46: 8691.9 | V46: 105737.98
A47: 1305 | B47: CLEVELAND COUNTY | C47: 0 | D47: 5980.13 | E47: 0 | F47: 0 | M47: - | N47: - | O47: 62893.67 | R47: 0 | U47: 209.12 | V47: 19564.23
A48: 1402 | B48: MAGNOLIA | C48: 205.05 | D48: 5490 | E48: 1176.21 | F48: 23480.2 | M48: 60363.79 | N48: 51967.58 | O48: 43357.29 | R48: 14705.94 | T48: 7483.64 | U48: 36552.56 | V48: 56020.58
A49: 1408 | B49: EMERSON-TAYLOR-BRADLEY | C49: 0 | D49: 4171.95 | E49: 19702 | F49: 8823.22 | M49: - | N49: 7970.22 | O49: 59796.18 | R49: 0 | U49: 12628.08 | V49: 58.69
A50: 1503 | B50: NEMO VISTA | C50: 0 | D50: 1431.75 | E50: 17023.76 | F50: 17457.15 | M50: - | N50: - | O50: 11428.23 | R50: 0 | T50: 5279.2 | V50: 2294.38
A51: 1505 | B51: WONDERVIEW | C51: 0 | D51: 0 | E51: 16344.59 | F51: 0 | M51: - | N51: - | O51: 34223.79 | R51: 0 | V51: 3419.15
A52: 1507 | B52: SO CONWAY COUNTY | C52: 0 | D52: 4354.79 | E52: 0 | F52: 22650.44 | M52: - | N52: - | O52: 134419.22 | R52: 0 | S52: 143.47 | U52: 11307.66 | V52: 32773.31
A53: 1601 | B53: BAY | C53: 486 | D53: 19931.24 | E53: 0 | F53: 1168.42 | M53: - | N53: - | O53: 2952.04 | R53: 0 | V53: 41704.13
A54: 1602 | B54: WESTSIDE CONSOLIDATED | C54: 0 | D54: 34535.41 | E54: 28013.23 | F54: 7586.46 | M54: - | N54: - | O54: 129952.49 | R54: 0 | U54: - | V54: 60934.79
A55: 1603 | B55: BROOKLAND | C55: 0 | D55: 5396.47 | E55: 5872.78 | F55: 40580.83 | M55: - | N55: 0.06 | O55: 7355.13 | R55: 8792.55 | V55: 33582.06
A56: 1605 | B56: BUFFALO ISLAND CENTRAL | C56: 0 | D56: 25090.93 | E56: 25621.26 | F56: 3598.04 | M56: - | N56: 0.01 | O56: 83656.192 | P56: 30872.132 | R56: 9293.21 | T56: 1736.66 | U56: 1222.23 | V56: 231.48
A57: 1608 | B57: JONESBORO | C57: 132096 | D57: 17634.85 | E57: 649166.73 | F57: 267320.25 | M57: - | N57: - | O57: 663772.67 | R57: 0 | S57: 34660.82 | V57: 122071.52
A58: 1611 | B58: NETTLETON | C58: 0 | D58: 0 | E58: 76489.32 | F58: 2272.66 | M58: 0.01 | N58: - | O58: 207476.6 | P58: 11266.6485 | R58: 0 | S58: 12749.81 | T58: 93649.21 | V58: 76402.67
A59: 1612 | B59: VALLEY VIEW | C59: 0 | D59: 0 | E59: 138.67 | F59: 17899.24 | M59: - | N59: - | O59: 23819.74 | R59: 0 | S59: 12983.24 | V59: 18467.44
A60: 1613 | B60: RIVERSIDE | C60: 0 | D60: 6976.52 | E60: 10067.22 | F60: 0 | M60: - | N60: - | O60: 3760.25 | R60: 0 | V60: 277.29
A61: 1701 | B61: ALMA | C61: 11433.99 | D61: 4764.92 | E61: 54799.39 | F61: 8539.5 | M61: - | N61: - | O61: 29240.11 | R61: 356.92 | T61: 473.43 | V61: 169836.52
A62: 1702 | B62: CEDARVILLE | C62: 158.45 | D62: 3091.86 | E62: 75016.64 | F62: 5300.1 | M62: - | N62: 4682.37 | O62: 64195.75 | R62: 0 | V62: 17473.5
A63: 1703 | B63: MOUNTAINBURG | C63: 2443.53 | D63: 1711.27 | E63: 37254.53 | F63: 19.15 | M63: 3236.5 | N63: 33.57 | O63: 23923.17 | R63: 0 | U63: 2300.8 | V63: 3513.16
A64: 1704 | B64: MULBERRY/PLEASANT VIEW BI-COUNTY | C64: 555.64 | D64: 0 | E64: 135.03 | F64: 3645.37 | M64: - | N64: - | O64: 10267.56 | Q64: 238.78 | R64: 0 | U64: 0.05 | V64: 13155.71
A65: 1705 | B65: VAN BUREN | C65: 0 | D65: 4609.82 | E65: 212935.84 | F65: 33931.89 | M65: 13167.05 | N65: 7484.67 | O65: 153360.24 | P65: 19108.97 | R65: 0 | S65: 4848.51 | V65: -
A66: 1802 | B66: EARLE | C66: 374 | D66: 0 | E66: 3012.81 | F66: 0 | M66: 1518.52 | N66: 2556.7 | O66: 286806.0045 | R66: 31814.58 | T66: 36630.93 | U66: 11784.19 | V66: 15567.34
A67: 1803 | B67: WEST MEMPHIS | C67: 11649 | D67: 0 | E67: 263955.14 | F67: 85934.57 | M67: 0.01 | N67: - | O67: 978187.57 | Q67: 155446.13 | R67: 153759.91 | T67: 17344.23 | V67: 328765.54
A68: 1804 | B68: MARION | C68: 0 | D68: 0 | E68: 461910.76 | F68: 178406.27 | M68: - | N68: - | O68: 685198.37 | Q68: 5059.77 | R68: 128499.03 | S68: 0 | T68: 62323.14 | V68: 437637.1
A69: 1901 | B69: CROSS COUNTY | C69: 102.84 | D69: 38117.24 | E69: 69798.3 | F69: 474.46 | M69: 0.03 | N69: - | O69: 47420.85 | R69: 885.69 | T69: 1168.02 | V69: 25000.09
A70: 1905 | B70: WYNNE | C70: 0 | D70: 6588 | E70: 47306.85 | F70: 18957.28 | M70: - | N70: - | O70: 180681 | R70: 0 | U70: 1023.18 | V70: 175398.09
A71: 2002 | B71: FORDYCE | C71: 0 | D71: 1982.41 | E71: 15831.02 | F71: 0 | M71: - | N71: - | O71: 4083.85 | Q71: 286651.02 | R71: 9048.06 | V71: 17039.16
A72: 2104 | B72: DUMAS | C72: 5502.81 | D72: 2071.6 | E72: 24346.96 | F72: 2405.3 | M72: - | N72: 0.6 | O72: 93331.82 | P72: 15095.62 | R72: 15903.05 | S72: 0 | T72: 18948.31 | U72: 905.44 | V72: 79304.87
A73: 2105 | B73: MCGEHEE | C73: 2033.21 | D73: 0 | E73: 81497.61 | F73: 16123.96 | M73: - | N73: - | O73: 100959.53 | R73: 23295.39 | V73: 16012.35
A74: 2202 | B74: DREW CENTRAL | C74: 0 | D74: 0 | E74: 0 | F74: 35092.03 | M74: - | N74: - | R74: 0 | V74: -
A75: 2203 | B75: MONTICELLO | C75: 55.66 | D75: 4797.05 | E75: 17576.46 | F75: 976.3 | M75: - | N75: - | O75: 123695.76 | R75: 732.6 | T75: 1798.86 | U75: 2539.1 | V75: 35071.69
A76: 2301 | B76: CONWAY | C76: 0 | D76: 6974.9 | E76: 92186.49 | F76: 17959.18 | M76: 5792.09 | N76: 39600.26 | O76: 369862.13 | P76: 0 | Q76: 77600.09 | R76: 29978.18 | S76: 94770.3 | T76: 58446.16 | V76: 22826.04
A77: 2303 | B77: GREENBRIER | C77: 0 | D77: 2883 | E77: 110924.99 | F77: 47509.4 | M77: - | N77: - | O77: 68401.21 | R77: 38710.36 | V77: 29973.3
A78: 2304 | B78: GUY-PERKINS | C78: 5346 | D78: 0 | E78: 26738.52 | F78: 0 | M78: - | N78: - | O78: 37972.38 | R78: 391.56 | V78: 6457.36
A79: 2305 | B79: MAYFLOWER | C79: 0 | D79: 964 | E79: 23240.92 | F79: 0 | M79: - | N79: - | O79: 46128.78 | R79: 0 | T79: 1925.12 | V79: 13705.56
A80: 2306 | B80: MOUNT VERNON/ENOLA | C80: 0 | D80: 472.16 | E80: 16442.47 | F80: 3552.8 | M80: - | N80: - | O80: 37150.7 | R80: 0 | V80: 3253.59
A81: 2307 | B81: VILONIA | C81: 2946.29 | D81: 9246.74 | E81: 12128.08 | F81: 50449.18 | M81: - | N81: - | O81: 46026.32 | R81: 4418.7 | T81: 16421.71 | V81: 52208.52
A82: 2402 | B82: CHARLESTON | C82: 1965.83 | D82: 5169.37 | E82: 34722.16 | F82: 2737.16 | M82: - | N82: - | O82: 36981.57 | R82: 0 | V82: 6214.6
A83: 2403 | B83: COUNTY LINE | C83: 0 | D83: 1474.92 | E83: 61440.78 | F83: 1607.76 | M83: - | N83: 21674.97 | O83: 22162.91 | R83: 0 | V83: 2857.34
A84: 2404 | B84: OZARK | C84: 10177.93 | D84: 1830 | E84: 75972.29 | F84: 635.23 | M84: - | N84: 37101.5 | O84: 38920.15 | R84: 0 | V84: 225478.43
A85: 2501 | B85: MAMMOTH SPRING | C85: 0 | D85: 8130.27 | E85: 4091.4 | F85: 0 | M85: - | N85: - | O85: 396.61 | R85: 19021.95 | T85: 2886.53 | U85: 8212.49 | V85: 13291.72
A86: 2502 | B86: SALEM | C86: 0 | D86: 0 | E86: 1524.6 | F86: 4941.61 | M86: 0.03 | N86: 0.03 | O86: 83930.17 | R86: 1732.5 | U86: 7786.71 | V86: 183367.92
A87: 2503 | B87: VIOLA | C87: 3848 | D87: 45877.24 | E87: 43093.8 | F87: 440.31 | M87: 17.29 | N87: - | O87: 17599.69 | R87: 0 | T87: 286.22 | V87: -
A88: 2601 | B88: CUTTER-MORNING STAR | C88: 39029.63 | D88: 17380.72 | E88: 0 | F88: 35605.69 | M88: - | N88: 0.01 | O88: 59551.38 | R88: 31154.9 | V88: -
A89: 2602 | B89: FOUNTAIN LAKE | C89: 0 | D89: 0 | E89: 68949.38 | F89: 71069.21 | M89: 12286.43 | N89: 5601.78 | O89: 39984.4 | R89: 59017.66 | T89: 25181.99 | V89: 12500
A90: 2603 | B90: HOT SPRINGS | C90: 0 | D90: 36.16 | E90: 56082.9 | F90: 21641.53 | M90: 240.74 | N90: 86138.48 | O90: 202632.73 | Q90: 9.5 | R90: 58529.59 | S90: 44821.28 | T90: 66998.93 | V90: 71797.81
A91: 2604 | B91: JESSIEVILLE | C91: 0 | D91: 0 | E91: 26860.82 | F91: 6829.62 | M91: - | N91: - | O91: 72664.75 | R91: 27207.28 | T91: 237.65 | V91: 15572.24
A92: 2605 | B92: LAKE HAMILTON | C92: 0 | D92: 835.2 | E92: 97145.29 | F92: 168862.68 | M92: - | N92: 0.01 | O92: 154657.2 | R92: 113310.02 | S92: 19546.77 | V92: 177678.29
A93: 2606 | B93: LAKESIDE | C93: 0 | D93: 14292.39 | E93: 11560.51 | F93: 38766.8 | M93: - | N93: - | O93: 89811.93 | R93: 0 | S93: 19186.84 | V93: 463.64
A94: 2607 | B94: MOUNTAIN PINE | C94: 24520.35 | D94: 0 | E94: 33839.73 | F94: 17018.23 | M94: - | N94: 20083.22 | O94: 67527.46 | R94: 25435.57 | U94: 5365.37 | V94: 28381.01
A95: 2703 | B95: POYEN | C95: 814.92 | D95: 0 | E95: 496.07 | F95: 0 | M95: - | N95: - | O95: 5747.99 | R95: 205 | V95: 9481.96
A96: 2705 | B96: SHERIDAN | C96: 0 | D96: 0 | E96: 0 | F96: 29653.28 | M96: - | N96: - | O96: 30839.62 | R96: 37002.32 | S96: 716.57 | T96: 902.72 | V96: 77875.43
A97: 2803 | B97: MARMADUKE | C97: 213.7 | D97: 8443.72 | E97: 5028.37 | F97: 161.04 | M97: - | N97: - | O97: 11607.57 | R97: 1134.61 | U97: 277.84 | V97: 1248.48
A98: 2807 | B98: GREENE COUNTY TECH | C98: 839.85 | D98: 75 | E98: 11608.57 | F98: 33590.91 | M98: 5945.29 | N98: 38043.83 | O98: 45672.47 | Q98: 14754.36 | R98: 4379.07 | S98: 13899.64 | V98: 157474.86
A99: 2808 | B99: PARAGOULD | C99: 0 | D99: 0 | E99: 3799.34 | F99: 1301.33 | M99: 6513.76 | N99: 4564.03 | O99: 93575.82 | P99: 4754.851 | R99: 33149.91 | S99: 5709.16 | U99: 64078.62 | V99: -
A100: 2901 | B100: BLEVINS | C100: 14952 | D100: 0 | E100: 11595.81 | F100: 290 | M100: - | N100: 12623.17 | R100: 0 | V100: 7943.17
A101: 2903 | B101: HOPE | C101: 74965.19 | D101: 0 | E101: 279867.44 | F101: 80870.33 | M101: - | N101: - | O101: 166727.48 | R101: 20495.14 | S101: 85247.82 | U101: 32735.6 | V101: 179434.77
A102: 2906 | B102: SPRING HILL | C102: 0 | D102: 3625.48 | E102: 30731.5 | F102: 867.82 | M102: - | N102: 15612.87 | O102: 2216.46 | R102: 0 | T102: 3956.82 | V102: 6321.59
A103: 3001 | B103: BISMARCK | C103: 2125.19 | D103: 2518.45 | E103: 43159.04 | F103: 15569.79 | M103: 4.15 | N103: - | O103: 27070.8 | R103: 36476.73 | T103: 0.4 | U103: 1500 | V103: 34610.77
A104: 3002 | B104: GLEN ROSE | C104: 0 | D104: 366 | E104: 0 | F104: 9831.33 | M104: - | N104: - | O104: 6123.73 | R104: 0 | U104: - | V104: 5926.76
A105: 3003 | B105: MAGNET COVE | C105: 1830 | D105: 38212.93 | E105: 8676.24 | F105: 0 | M105: - | N105: 8556.8 | O105: 7701.07 | R105: 0 | V105: -
A106: 3004 | B106: MALVERN | C106: 51889.61 | D106: 0 | E106: 166490.15 | F106: 89531.88 | M106: - | N106: - | O106: 25243.08 | R106: 46226.7 | S106: 9345.44 | T106: 105806.05 | V106: 316868.34
A107: 3005 | B107: OUACHITA | C107: 0 | D107: 0 | E107: 1708.33 | F107: 0 | M107: - | N107: - | O107: 1055.44 | R107: 389.95 | V107: 1378.87
A108: 3102 | B108: DIERKS | C108: 6956.74 | D108: 3507.13 | E108: 26717.71 | F108: 20356.34 | M108: - | N108: - | O108: 60223.88 | R108: 0 | V108: 1299.68
A109: 3104 | B109: MINERAL SPRINGS | C109: 9117.05 | D109: 5878.48 | E109: 38542.14 | F109: 7478.73 | M109: - | N109: - | O109: 27888.16 | R109: 10294.9 | U109: 9844.37 | V109: 5088.89
A110: 3105 | B110: NASHVILLE | C110: 59697.34 | D110: 16537.27 | E110: 211717.54 | F110: 78890.16 | M110: 5267.77 | N110: 29283.36 | O110: 105285.21 | P110: 20526.51 | R110: 666.8 | S110: 0 | T110: 83631.63 | U110: 2780.21 | V110: 63203.72
A111: 3201 | B111: BATESVILLE | C111: 0 | D111: 17524.14 | E111: 122314.57 | F111: 97685.38 | M111: 10630.52 | N111: 3164.44 | O111: 192307.82 | P111: 28173.17 | R111: 229093.98 | S111: 26852.69 | U111: 7865.04 | V111: 79730.75
A112: 3209 | B112: SOUTHSIDE | C112: 1546.55 | D112: 403.15 | E112: 6996.91 | F112: 4212.33 | M112: - | N112: - | O112: 19673.54 | R112: 4609.31 | V112: 33503.75
A113: 3211 | B113: MIDLAND | C113: 173.12 | D113: 0 | E113: 0.3 | F113: 0 | M113: 7238.93 | N113: 1144.98 | O113: 35878.17 | P113: 3230.868 | R113: 33179.02 | T113: 756.47 | V113: 33649.41
A114: 3212 | B114: CEDAR RIDGE | C114: 22.86 | D114: 5646 | E114: 6325.11 | F114: 0 | M114: - | N114: - | O114: 514.1 | R114: 0 | V114: 15327.66
A115: 3301 | B115: CALICO ROCK | C115: 118.51 | D115: 1830 | E115: 38720.72 | F115: 28934.7 | M115: - | N115: - | O115: 20214.99 | R115: 21.7 | V115: 6395.1
A116: 3302 | B116: MELBOURNE | C116: 51.13 | D116: 3189 | E116: 15410.31 | F116: 2323.1 | M116: - | N116: - | O116: 28116 | R116: 0 | U116: 28153.19 | V116: 1562.91
A117: 3306 | B117: IZARD COUNTY CONSOLIDATED | C117: 13749 | D117: 0 | E117: 31636.82 | F117: 0 | M117: 4747.6 | N117: 8345.16 | O117: 6900 | R117: 0 | U117: 1434.78 | V117: 2758.52
A118: 3403 | B118: NEWPORT | C118: 0 | D118: 2196 | E118: 101846.63 | F118: 9908.78 | M118: - | N118: - | O118: 86877.3 | R118: 34813.98 | V118: 101872.77
A119: 3405 | B119: JACKSON COUNTY | C119: 55.48 | D119: 76451.51 | E119: 4198.73 | F119: 9165.58 | M119: - | N119: - | O119: 20671.51 | R119: 7312.5 | V119: 56131.96
A120: 3505 | B120: PINE BLUFF | C120: 0 | D120: 0 | E120: 34376.68 | F120: 4969.31 | M120: 165.97 | N120: - | O120: 234436.35 | R120: 3539.24 | T120: 110169.05 | V120: 135013.03
A121: 3509 | B121: WATSON CHAPEL | C121: 0 | D121: 3129.5 | E121: 0 | F121: 11305.91 | M121: - | N121: - | O121: 152635.3 | R121: 59275.91 | V121: 61128.15
A122: 3510 | B122: WHITE HALL | C122: 0 | D122: 0 | E122: 0 | F122: 157734.69 | M122: 14062.76 | N122: - | O122: 164209.13 | R122: 44806.24 | S122: 12507.05 | T122: 30332.01 | V122: -
A123: 3544 | B123: FRIENDSHIP ASPIRE ACADEMIES ARKANSAS | C123: 0 | D123: 23014.37 | E123: 95262.04 | F123: 0 | M123: 5883.35 | R123: 0 | V123: 3057.32
A124: 3601 | B124: CLARKSVILLE | C124: 9954.68 | D124: 7566.26 | E124: 246834.74 | F124: 86322.75 | M124: 108.6 | N124: - | O124: 17132.38 | P124: 35083.47 | R124: 123928.84 | S124: 12863.62 | T124: 19285.55 | U124: 7416.31 | V124: 82928.39
A125: 3604 | B125: LAMAR | C125: 42445.61 | D125: 18777.79 | E125: 14891.09 | F125: 2016.74 | M125: - | N125: - | O125: 45042.01 | R125: 9370.32 | V125: 14425.87
A126: 3606 | B126: WESTSIDE | C126: 12840.8 | D126: 697 | E126: 55636.8 | F126: 15480.2 | M126: - | N126: - | O126: 70334.33 | R126: 0 | U126: 787.63 | V126: 747.61
A127: 3704 | B127: LAFAYETTE COUNTY | C127: 0 | D127: 10248 | E127: 33586.25 | F127: 0 | M127: 16080.99 | N127: 1876.45 | O127: 60500.96 | R127: 28567.1 | T127: 15790.86 | U127: 15665.73 | V127: 43329.22
A128: 3804 | B128: HOXIE | C128: 29363.14 | D128: 4662.03 | E128: 16592.07 | F128: 1486.33 | M128: - | N128: 0.02 | O128: 68141.53 | R128: 0 | U128: 6494.24 | V128: 329213.51
A129: 3806 | B129: SLOAN-HENDRIX | C129: 163.16 | D129: 1056 | E129: 58104.1 | F129: 15840.36 | M129: - | N129: 0.01 | O129: 28922.98 | R129: 0 | U129: 1079 | V129: 56907.81
A130: 3809 | B130: HILLCREST | C130: 0 | D130: 317.54 | E130: 25378.75 | F130: 6333.15 | M130: - | N130: - | O130: 29349.51 | R130: 11412.53 | U130: 333.86 | V130: -
A131: 3810 | B131: LAWRENCE COUNTY | C131: 998.01 | D131: 0 | E131: 385.11 | F131: 0 | M131: - | N131: 0.01 | O131: 6082.19 | R131: 0 | V131: 7903.53
A132: 3840 | B132: IMBODEN AREA CHARTER SCHOOL | C132: 0 | D132: 21415.8 | E132: 0 | F132: 4156.65 | M132: 1338.56 | N132: 5829.69 | O132: 14.9 | R132: 1057.33 | T132: 2293.75 | V132: 20008.63
A133: 3904 | B133: LEE COUNTY | C133: 0 | D133: 6124.53 | E133: 41322.43 | F133: 0 | M133: 17715.55 | N133: 51983.24 | O133: 295287.51 | R133: 18541.09 | T133: 19049.37 | U133: 7867.91 | V133: 120491.8
A134: 4003 | B134: STAR CITY | C134: 638.47 | D134: 13604.89 | E134: 6175.82 | F134: 467.1 | M134: - | N134: 39552.82 | P134: 1534.89 | R134: 10941.32 | T134: 8493.5 | U134: 7566.88 | V134: 1450.98
A135: 4101 | B135: ASHDOWN | C135: 7795.62 | D135: 4081.7 | E135: 50219.03 | F135: 25361.37 | M135: - | N135: - | O135: 94341.52 | R135: 9434.83 | T135: 4400.62 | U135: 130 | V135: 57491.83
A136: 4102 | B136: FOREMAN | C136: 0 | D136: 10866.37 | E136: 33324.43 | F136: 975.02 | M136: - | N136: - | O136: 19187.48 | R136: 0 | V136: 24569.87
A137: 4201 | B137: BOONEVILLE | C137: 33649.66 | D137: 0 | E137: 14601.33 | F137: 10966.59 | M137: - | N137: 16821.37 | O137: 95477.69 | R137: 0 | U137: 105415.3 | V137: 43392.46
A138: 4202 | B138: MAGAZINE | C138: 0 | D138: 0 | E138: 28708.92 | F138: 0 | M138: - | N138: 17326.35 | O138: 12352.6 | R138: 0 | V138: 5072.84
A139: 4203 | B139: PARIS | C139: 0 | D139: 3294 | E139: 67989.23 | F139: 0 | M139: - | N139: 22691.2 | O139: 50110.67 | R139: 0 | V139: -
A140: 4204 | B140: SCRANTON | C140: 0 | D140: 0 | E140: 858.14 | F140: 2728.08 | M140: - | N140: 2036.76 | O140: 264.02 | R140: 0 | V140: 89.13
A141: 4301 | B141: LONOKE | C141: 0 | D141: 48377.93 | E141: 0 | F141: 0 | M141: 0.01 | N141: - | O141: 77553.22 | R141: 0 | S141: 6002.12 | V141: 6071.26
A142: 4302 | B142: ENGLAND | C142: 0 | D142: 4980 | E142: 48200.59 | F142: 441.17 | M142: - | N142: - | O142: 10754.37 | R142: 15731.3 | U142: 4843.73 | V142: 136393.43
A143: 4303 | B143: CARLISLE | C143: 8882 | D143: 27582.03 | E143: 27143.7 | F143: 2368.79 | M143: - | N143: - | O143: 14474.49 | R143: 20861.65 | T143: 10000 | V143: 28777.38
A144: 4304 | B144: CABOT | C144: 34151.06 | D144: 0 | E144: 15508.11 | F144: 1506.5 | M144: - | N144: - | O144: 135214.92 | R144: 120694.39 | S144: 32391.29 | T144: 6376.59 | V144: 181776.01
A145: 4401 | B145: HUNTSVILLE | C145: 0 | D145: 2187.44 | E145: 67039.36 | F145: 74029.93 | M145: - | N145: - | O145: 126450.08 | P145: 8501.95 | R145: 12343.61 | S145: 17083.74 | T145: 34243.22 | V145: 3556.46
A146: 4501 | B146: FLIPPIN | C146: 0 | D146: 7526.19 | E146: 61239.06 | F146: 15819.05 | M146: 565.33 | N146: - | O146: 79721.54 | R146: 14074.6 | T146: 12037.13 | V146: 0.02
A147: 4502 | B147: YELLVILLE-SUMMIT | C147: 10436 | D147: 2192.45 | E147: 46558.09 | F147: 26126.03 | M147: - | N147: - | O147: 56898.64 | R147: 0 | U147: 206.51 | V147: 95595.72
A148: 4602 | B148: GENOA CENTRAL | C148: 10922.17 | D148: 9396.05 | E148: 12142.65 | F148: 347.8 | M148: - | N148: - | O148: 17509.94 | R148: 1905.59 | T148: 1229.77 | U148: 9209.36 | V148: 29277.73
A149: 4603 | B149: FOUKE | C149: 34688.45 | D149: 26736.52 | E149: 35850.26 | F149: 12386.24 | M149: - | N149: - | O149: 57076.97 | R149: 0 | T149: 13264.06 | V149: -
A150: 4605 | B150: TEXARKANA | C150: 0 | D150: 636.1 | E150: 60831.06 | F150: 68911.87 | M150: 21351.32 | N150: 15016.45 | O150: 622311.2 | R150: 197273.48 | S150: 3979 | T150: 40544.36 | V150: 126456.84
A151: 4701 | B151: ARMOREL | C151: 0 | D151: 31646.42 | E151: 18.03 | F151: 0 | M151: - | N151: - | O151: 3008.82 | R151: 0 | V151: 22950.2
A152: 4702 | B152: BLYTHEVILLE | C152: 106337.84 | D152: 0 | E152: 238407.2 | F152: 40890.62 | M152: 0.01 | N152: - | O152: 282244.17 | R152: 79952.18 | T152: 88117.68 | U152: 46244.23 | V152: 363816.19
A153: 4706 | B153: RIVERCREST | C153: 0 | D153: 0 | E153: 558.43 | F153: 0 | M153: - | N153: - | O153: 239523.53 | R153: 0 | V153: 400204.04
A154: 4708 | B154: GOSNELL | C154: 0 | D154: 0 | E154: 0 | F154: 0 | M154: - | N154: - | O154: 15497.64 | R154: 5272.54 | V154: 62240.06
A155: 4712 | B155: MANILA | C155: 0 | D155: 35865.51 | E155: 11087.58 | F155: 156.6 | M155: - | N155: - | O155: 22550.81 | R155: 0 | V155: 6963.5
A156: 4713 | B156: OSCEOLA | C156: 20744.78 | D156: 26304.55 | E156: 95187.81 | F156: 7492.04 | M156: 41.81 | N156: - | O156: 366971.87 | R156: 126867.85 | V156: 36738.31
A157: 4801 | B157: BRINKLEY | C157: 0 | D157: 827.41 | E157: 146792.57 | F157: 6219.39 | M157: - | N157: 9.59 | O157: 286160.11 | R157: 48944.62 | T157: 28564.1 | U157: 4058.72 | V157: 3941.14
A158: 4802 | B158: CLARENDON | C158: 9962.22 | D158: 13045.54 | E158: 20364.56 | F158: 4185.61 | M158: 0.02 | N158: - | O158: 39430.89 | R158: 4666.28 | V158: -
A159: 4901 | B159: CADDO HILLS | C159: 718.62 | D159: 4392 | E159: 55624.09 | F159: 0 | M159: - | N159: - | O159: 25009.62 | R159: 0 | T159: 20889.8 | U159: 4190.67 | V159: 7297.9
A160: 4902 | B160: MOUNT IDA | C160: 1067.22 | D160: 4208.1 | E160: 0 | F160: 0 | M160: - | N160: - | O160: 31331.08 | R160: 0 | V160: 2081.82
A161: 5006 | B161: PRESCOTT | C161: 0 | D161: 16395 | E161: 9372.35 | F161: 0 | M161: - | N161: 0.05 | O161: 3699.6 | R161: 18557.24 | T161: 3064.29 | U161: 7002.13 | V161: 35169.24
A162: 5008 | B162: NEVADA | C162: 3339.49 | D162: 3541 | E162: 23383.3 | F162: 0 | M162: 19.6 | N162: 11120.27 | O162: 11020.06 | R162: 669.87 | T162: 702.3 | V162: 8852.01
A163: 5102 | B163: JASPER | C163: 0 | D163: 0 | E163: 4827.64 | F163: 0 | M163: 75.03 | N163: - | O163: 4700.07 | P163: 6049.4075 | R163: 0 | U163: 2995.33 | V163: 184264.93
A164: 5106 | B164: DEER/MT. JUDEA | C164: 0 | D164: 967.08 | E164: 20872.71 | F164: 16631.22 | M164: - | N164: 810.66 | O164: 27325.26 | R164: 173.63 | T164: 1537.16 | V164: 30279.49
A165: 5201 | B165: BEARDEN | C165: 15873.75 | D165: 78305.56 | E165: 17997.07 | F165: 24584.37 | M165: 19.23 | N165: 21370.6 | O165: 47468.51 | R165: 18050.39 | V165: 34572.03
A166: 5204 | B166: CAMDEN-FAIRVIEW | C166: 0.76 | D166: 732 | E166: 0 | F166: 2885.01 | M166: 7824.84 | N166: 19896.67 | O166: 5107.47 | R166: 1812.53 | T166: 673.08 | U166: 18807.08 | V166: 51299.14
A167: 5205 | B167: HARMONY GROVE | C167: 245.42 | D167: 0 | E167: 15258.23 | F167: 2335.25 | M167: - | N167: 16184.27 | O167: 3859.79 | R167: 3149.52 | T167: 24268.69 | U167: 92.27 | V167: 2783.02
A168: 5301 | B168: EAST END | C168: 1776.3 | D168: 1830 | E168: 7468.48 | F168: 1535 | M168: - | N168: - | O168: 32299.07 | R168: 0 | V168: 3818
A169: 5303 | B169: PERRYVILLE | C169: 1567 | D169: 4741.96 | E169: 7802.59 | F169: 1293.68 | M169: - | N169: - | O169: 80736.04 | R169: 6394.99 | T169: 23378.45 | U169: 1258.88 | V169: 12524.54
A170: 5401 | B170: BARTON | C170: 1145 | D170: 11437.55 | E170: 3724.99 | F170: 2300.46 | M170: - | N170: - | O170: 27189.95 | R170: 1654.11 | U170: 763.57 | V170: -
A171: 5403 | B171: HELENA-W HELENA | C171: 8469 | D171: 0 | E171: 3026.08 | F171: 664.06 | M171: - | N171: - | R171: 0 | V171: 32663.06
A172: 5404 | B172: MARVELL-ELAINE | C172: 0 | D172: 24837.64 | E172: 0 | F172: 0 | M172: 1.71 | N172: - | O172: 121091.62 | R172: 35756.07 | U172: 2647.71 | V172: 109610.15
A173: 5440 | B173: KIPP DELTA | C173: 0 | D173: 0 | E173: 869826.38 | F173: 76688 | M173: - | N173: - | O173: 1711243.22 | R173: 418235.93 | T173: 345750.24 | U173: 43640.03 | V173: 277650.37
A174: 5502 | B174: CENTERPOINT | C174: 0 | D174: 15260.95 | E174: 50938.53 | F174: 15484.5 | M174: - | N174: 0.01 | O174: 43197 | P174: 18332.48 | R174: 0 | S174: 0 | U174: 11094.55 | V174: 42027.02
A175: 5503 | B175: KIRBY | C175: 1754.2 | D175: 3126.84 | E175: 12.65 | F175: 5534.69 | M175: 1753.36 | N175: 651.56 | O175: 5850.79 | R175: 0 | V175: 17731.68
A176: 5504 | B176: SOUTH PIKE COUNTY | C176: 313.44 | D176: 0 | E176: 27638.15 | F176: 990.96 | M176: 25.29 | N176: 23092.44 | O176: 47337.48 | R176: 0 | U176: 19119.26 | V176: 23099.48
A177: 5602 | B177: HARRISBURG | C177: 0 | D177: 212 | E177: 11477.38 | F177: 0 | M177: - | N177: - | O177: 18227.25 | R177: 0 | V177: 11340.78
A178: 5604 | B178: MARKED TREE | C178: 0.68 | D178: 57417.71 | E178: 353.69 | F178: 0 | M178: 2386.25 | N178: 3772.63 | R178: 0 | V178: 16348.52
A179: 5605 | B179: TRUMANN | C179: 2284.98 | D179: 8004.55 | E179: 19601.11 | F179: 5056.83 | M179: 0.01 | N179: - | O179: 74431.42 | R179: 3914.24 | V179: 20646.18
A180: 5608 | B180: EAST POINSETT COUNTY | C180: 0 | D180: 10162.26 | E180: 337633.62 | F180: 434.19 | M180: 12626.64 | N180: 21401.19 | O180: 34462.57 | R180: 0 | U180: 802.06 | V180: 21216.57
A181: 5703 | B181: MENA | C181: 5875.25 | D181: 9272.15 | E181: 73075.31 | F181: 17460.36 | M181: - | N181: - | O181: 216955.9 | R181: 0 | U181: 10393.39 | V181: 1682.63
A182: 5706 | B182: OUACHITA RIVER | C182: 2249.98 | D182: 2391.37 | E182: 41136.76 | F182: 4830.03 | M182: - | N182: - | O182: 17915.53 | R182: 0 | T182: 4438.94 | U182: 722.25 | V182: 8074.51
A183: 5707 | B183: COSSATOT RIVER | C183: 0 | D183: 3419.42 | E183: 90758.43 | F183: 12679.27 | M183: - | N183: - | O183: 172032.18 | P183: 1191.67 | R183: 30232.88 | S183: 0 | T183: 18971.6 | U183: 28675.11 | V183: 41242.2
A184: 5801 | B184: ATKINS | C184: 0 | D184: 13364.26 | E184: 57310.63 | F184: 0 | M184: - | N184: - | O184: 68048.07 | R184: 0 | U184: 2160.46 | V184: 51085.17
A185: 5802 | B185: DOVER | C185: 24018.65 | D185: 732 | E185: 18803 | F185: 29950.43 | M185: - | N185: - | O185: 46691.1 | R185: 51850.2 | T185: 18857.38 | V185: 13319.89
A186: 5803 | B186: HECTOR | C186: 18769 | D186: 8931 | E186: 0 | F186: 0 | M186: - | N186: - | O186: 24467.66 | R186: 21954.74 | T186: 15383.14 | V186: 4227.01
A187: 5804 | B187: POTTSVILLE | C187: 500 | D187: 16563.25 | E187: 34369.58 | F187: 24959.29 | M187: - | N187: 620.22 | O187: 28454.25 | R187: 16862.69 | T187: 1592.55 | V187: 49402.93
A188: 5805 | B188: RUSSELLVILLE | C188: 17996.11 | D188: 5403.3 | E188: 63268.36 | F188: 12965.94 | M188: 2524.79 | N188: 75799.66 | O188: 433739.86 | R188: 110857.82 | S188: 38198.57 | T188: 33069.67 | V188: 398874.69
A189: 5901 | B189: DES ARC | C189: 507.86 | D189: 8409.11 | E189: 33813.5 | F189: 0 | M189: - | N189: - | O189: 26521.77 | R189: 0 | V189: 19632.99
A190: 5903 | B190: HAZEN | C190: 0 | D190: 229193.89 | E190: 67261.65 | F190: 2423.02 | M190: - | N190: - | O190: 82835.56 | R190: 44042.61 | U190: 11075.67 | V190: -
A191: 6001 | B191: LITTLE ROCK | C191: 15030.6 | D191: 0 | E191: 0 | F191: 0 | M191: - | N191: - | O191: 3606403.66 | R191: 900214.54 | S191: 97836.83 | T191: 190560.05 | V191: -
A192: 6002 | B192: NORTH LITTLE ROCK | C192: 0 | D192: 4499.01 | E192: 0 | F192: 0 | M192: 2679.82 | N192: 49689.72 | O192: 518889.81 | R192: 273807.13 | S192: 10566.34 | T192: 113900.4 | V192: 126694.25
A193: 6003 | B193: PULASKI COUNTY | C193: 0 | D193: 15891.1 | E193: 64349.01 | F193: 95146.93 | M193: 71668.57 | N193: 632816.41 | O193: 1324292.16 | P193: 6368.755 | R193: 467208.78 | S193: 20107.34 | T193: 389130.78 | V193: 600166.57
A194: 6004 | B194: JACKSONVILLE NORTH PULASKI | C194: 0 | D194: 0 | E194: 37111.05 | F194: 6406.36 | M194: 79.12 | N194: - | O194: 264145.57 | P194: 0 | R194: 42494.6 | S194: 1060.82 | T194: 253880.1 | V194: 50367.96
A195: 6040 | B195: ACADEMICS PLUS | C195: 0 | D195: 0 | E195: 0 | F195: 5418.83 | M195: - | N195: 113110.22 | O195: 4887.61 | R195: 12.34 | T195: 569.48 | V195: 4117.93
A196: 6041 | B196: LISA ACADEMY | C196: 0 | D196: 184883.09 | E196: 1120.41 | F196: 39019.3 | M196: - | N196: 149287.64 | O196: 23986.78 | R196: 0 | S196: 72903.07 | V196: -
A197: 6043 | B197: ARKANSAS VIRTUAL ACADEMY | C197: 0 | D197: 38376.57 | E197: 0 | F197: 0 | M197: 7226.39 | N197: - | O197: 352391.18 | R197: 52040.63 | S197: 1214.25 | V197: 75547.12
A198: 6047 | B198: ESTEM | C198: 0 | D198: 9854.11 | E198: 151046.65 | F198: 114903.56 | M198: - | N198: - | O198: 60895.16 | R198: 0 | S198: 3810.85 | T198: 9927.95 | V198: 8669.23
A199: 6050 | B199: ARKANSAS LIGHTHOUSE ACADEMIES | C199: 0 | D199: 0 | E199: 12861.85 | F199: 2019.5 | M199: - | N199: 11072.23 | O199: 118332.6 | R199: 0 | V199: 316594.49
A200: 6052 | B200: GRADUATE ARKANSAS | C200: 0 | D200: 16576.03 | E200: 0 | F200: 0 | M200: 7536.96 | R200: 0 | V200: -
... 61 more rows

Sheet Allocation (hidden)
C1: 3 | D1: 4 | E1: 5 | F1: 6 | G1: 7 | H1: 8 | I1: 9 | J1: 11 | K1: 12 | L1: 13 | M1: 14 | N1: 15 | O1: 16 | P1: 17 | Q1: 18 | R1: 19 | S1: 20 | T1: 21 | U1: 22 | V1: 23
A2: District LEA | B2: District Name | C2: ALE: 2275 | D2: ELL: 2276 | E2: ESA: 2281 | F2: PD: 2223 | G2: ABC | H2: Medicaid: 6750 | I2: ARMAC: 6752 | J2: Grant | K2: GT Required Expenditure | L2: Operating | M2: Fed Early Childhood SPED: 6710 | N2: State Early Childhood SPED: 2260 | O2: Title I - A: 6501 | P2: Title I - C: 6502 | Q2: Title I - D: 6510 | R2: Title II: 6756 | S2: Title III-ESOL: 6761 | T2: Title IV: 6786 | U2: Title V: 6784 | V2: Title VI B (IDEA Part B - SPED): 6702
A3: 9999 | B3: SAMPLE DISTRICT | C3: 39351 | D3: 80886 | E3: 485276 | F3: 21190 | K3: 32933.11 | M3: 5729.96 | N3: 17644 | O3: 139236.78 | P3: 26393.82 | Q3: 96918.66 | R3: 27611.89 | S3: 23604.54 | T3: 10784.57 | U3: 1299.94 | V3: 164607.6
A4: 0101 | B4: DEWITT | C4: 14267 | D4: 14625 | E4: 351538 | F4: 45513 | K4: 67952.94 | M4: 12471.54 | N4: 95160.18 | O4: 370337.23 | R4: 49489.99 | T4: 27779.3 | U4: 947.24 | V4: 319222.91 | Y4: Final
A5: 0104 | B5: STUTTGART | C5: 40254 | D5: 44250 | E5: 548796 | F5: 62088 | K5: 92699.71 | M5: 21405.35 | N5: 105355.92 | O5: 530207.05 | R5: 86301.07 | T5: 39713.1 | U5: 54481.85 | V5: 446330.25 | Y5: Preliminary
A6: 0201 | B6: CROSSETT | C6: 194841 | D6: 18000 | E6: 515185 | F6: 60793 | K6: 90767.15 | M6: 32263.4 | N6: 156334.59 | O6: 671985.19 | R6: 97221.51 | T6: 50406.18 | U6: 52675.2 | V6: 445147.99
A7: 0203 | B7: HAMBURG | C7: 95760 | D7: 57000 | E7: 579652 | F7: 63742 | K7: 95169.74 | M7: 25477.54 | N7: 130845.25 | O7: 455459.33 | P7: 105012.69 | R7: 57370.8 | S7: 68149.6 | T7: 34136.05 | U7: 1299.94 | V7: 468688.71
A8: 0302 | B8: COTTER | C8: 36327 | D8: 750 | E8: 252358 | F8: 26983 | K8: 40286.2 | M8: 8778.61 | N8: 32286.49 | O8: 232552.66 | R8: 32852.5 | T8: 18688.58 | U8: 23115.92 | V8: 183619.82
A9: 0303 | B9: MOUNTAIN HOME | C9: 356331 | D9: 18000 | E9: 869478 | F9: 153137 | K9: 228641.7 | M9: 40022.82 | N9: 181823.92 | O9: 1126616.95 | R9: 177375.64 | T9: 89145.31 | V9: 923872.94
A10: 0304 | B10: NORFORK | C10: 0 | D10: 0 | E10: 143811 | F10: 18597 | K10: 27765.9 | M10: 12723.54 | N10: 37384.35 | O10: 172313.87 | R10: 19664.71 | T10: 14258.23 | V10: 131478.09
A11: 0401 | B11: BENTONVILLE | C11: 822407 | D11: 392250 | E11: 2017211 | F11: 799988 | K11: 1194420.96 | M11: 109749.35 | N11: 516583.87 | O11: 1490097.6 | Q11: 55341.8 | R11: 366903.12 | S11: 29159.51 | T11: 112457.54 | V11: 4084633.44
A12: 0402 | B12: DECATUR | C12: 49067 | D12: 76875 | E12: 499659 | F12: 23631 | K12: 35281.88 | M12: 5541.85 | N12: 27188.62 | O12: 137041.28 | R12: 21205.89 | S12: 98398.87 | T12: 10279.59 | V12: 153918.74
A13: 0403 | B13: GENTRY | C13: 118908 | D13: 64500 | E13: 540355 | F13: 71495 | K13: 106744.88 | M13: 11364.3 | N13: 49279.38 | O13: 201010.31 | R13: 44961.73 | S13: 35234.05 | T13: 17133.99 | V13: 449172.41
A14: 0404 | B14: GRAVETTE | C14: 96531 | D14: 22125 | E14: 488186 | F14: 83540 | K14: 124729.85 | M14: 12825.49 | N14: 37384.35 | O14: 256474.61 | R14: 59724.44 | T14: 20458.85 | V14: 453479.25
A15: 0405 | B15: ROGERS | C15: 733988 | D15: 1510500 | E15: 4329207 | F15: 623587 | K15: 931046.48 | M15: 110149.01 | N15: 390836.48 | O15: 2610190.87 | R15: 491877.85 | S15: 109646.51 | T15: 217987.64 | V15: 3580242.26
A16: 0406 | B16: SILOAM SPRINGS | C16: 294138 | D16: 360000 | E16: 1487700 | F16: 183361 | K16: 273766.34 | M16: 27480.93 | N16: 142740.28 | O16: 812857.48 | R16: 135257.74 | S16: 28091.92 | T16: 71305.93 | V16: 1006546.77
A17: 0407 | B17: PEA RIDGE | C17: 43287 | D17: 43125 | E17: 474866 | F17: 107169 | K17: 160009.28 | M17: 17577 | N17: 49279.38 | O17: 209820.38 | R17: 51463.36 | S17: 63950.74 | T17: 16585.09 | V17: 536833.62
A18: 0440 | B18: ARKANSAS ARTS ACADEMY | C18: 0 | D18: 0 | K18: 56978.31 | M18: - | N18: - | O18: 147342.32 | R18: 27034.86 | T18: 12925.23 | V18: 204806.93
A19: 0442 | B19: COLLEGE PREPARATORY ACADEMIES OF ARKANSAS | C19: 0 | D19: 0 | M19: 9691.79 | N19: 8496.44 | O19: 293.07 | R19: 25213.8 | S19: 66844.34 | T19: 10000 | V19: 344727.73
A20: 0444 | B20: ARKANSAS CONNECTIONS ACADEMY | C20: 0 | D20: 0 | M20: - | O20: 1375143.71 | R20: 198671.51 | T20: 102463.09 | V20: 985504.25
A21: 0446 | B21: SCHOOL FOR ADVANCED STUDIES | C21: 0 | D21: 0 | R21: 2655.06 | V21: 3187.74
A22: 0448 | B22: GARFIELD SCHOLARS ACADEMY | C22: 0 | D22: 0 | K22: 4533.58 | O22: 13503.32 | R22: 3644.65 | T22: 10000 | V22: 17256.33
A23: 0501 | B23: ALPENA | C23: 6973 | D23: 2625 | E23: 139403 | F23: 15424 | K23: 23028.47 | M23: 5751.99 | N23: 16992.89 | O23: 189428.3 | R23: 22938.22 | T23: 15650.83 | V23: 125761.23
A24: 0502 | B24: BERGMAN | C24: 50855 | D24: 1125 | E24: 333355 | F24: 41549 | K24: 62034.67 | M24: 6383.01 | N24: 32286.49 | O24: 204708.68 | R24: 40645.2 | T24: 15355.37 | V24: 246510.02
A25: 0503 | B25: HARRISON | C25: 84047 | D25: 15375 | E25: 881600 | F25: 111723 | K25: 166807.81 | M25: 42089.33 | N25: 154635.3 | O25: 680610.69 | R25: 138186.31 | T25: 51096.6 | V25: 692754.35
A26: 0504 | B26: OMAHA | C26: 72021 | D26: 0 | E26: 304428 | F26: 15413 | K26: 23012.55 | M26: 8998.74 | N26: 23790.04 | O26: 126958.81 | R26: 15644.57 | T26: 10504.94 | V26: 105881.56
A27: 0505 | B27: VALLEY SPRINGS | C27: 37002 | D27: 2250 | E27: 216543 | F27: 30527 | K27: 45577.63 | M27: 7358.13 | N27: 56076.53 | O27: 174716.32 | R27: 31126.08 | T27: 14243.07 | V27: 201944.2
A28: 0506 | B28: LEAD HILL | C28: 28411 | D28: 750 | E28: 298913 | F28: 14236 | K28: 21255.68 | M28: 3394.06 | N28: 13594.31 | O28: 164008.91 | R28: 22671.45 | T28: 12422.47 | V28: 109058.42
A29: 0601 | B29: HERMITAGE | C29: 54462 | D29: 24750 | E29: 320973 | F29: 15749 | K29: 23514.52 | M29: 7548.98 | N29: 35685.07 | O29: 185808.33 | P29: 358832.93 | R29: 24714.74 | T29: 13937.63 | V29: 112120.69
A30: 0602 | B30: WARREN | C30: 78158 | D30: 96375 | E30: 1140502 | F30: 58566 | K30: 87442.57 | M30: 34832.9 | N30: 146138.85 | O30: 544375.88 | P30: 194096.99 | R30: 84464.24 | S30: 10235.74 | T30: 40903.56 | U30: 50296.34 | V30: 400666.6
A31: 0701 | B31: HAMPTON | C31: 38255 | D31: 1125 | E31: 371711 | F31: 18919 | K31: 28247.05 | M31: 13561.82 | N31: 20391.46 | O31: 125946.98 | R31: 19656.08 | T31: 10385.49 | V31: 159592.12
A32: 0801 | B32: BERRYVILLE | C32: 122435 | D32: 135750 | E32: 1363308 | F32: 70762 | K32: 105651.58 | M32: 23238.49 | N32: 52677.96 | O32: 542918.66 | P32: 132329.24 | R32: 81745.04 | S32: 11925.65 | T32: 41942.28 | V32: 410396.54
A33: 0802 | B33: EUREKA SPRINGS | C33: 96005 | D33: 16875 | E33: 217094 | F33: 24861 | K33: 37118.33 | M33: 9525.26 | N33: 22090.75 | O33: 306277.32 | R33: 34367.47 | T33: 23902.96 | U33: 534.52 | V33: 196094.64
A34: 0803 | B34: GREEN FOREST | C34: 33068 | D34: 172500 | E34: 1261832 | F34: 55899 | K34: 83459.31 | M34: 16565.07 | N34: 62873.69 | O34: 392051.24 | P34: 112072.13 | R34: 63470.39 | S34: 44208.75 | T34: 29408.09 | U34: 1197.72 | V34: 355464.64
A35: 0901 | B35: DERMOTT | C35: 3023 | D35: 1500 | E35: 434739 | F35: 11166 | K35: 16671.29 | M35: 5860.26 | N35: 64572.98 | O35: 394433.27 | R35: 33425.91 | T35: 30042.57 | U35: 10121.68 | V35: 111273.11
A36: 0903 | B36: LAKESIDE | C36: 50579 | D36: 18375 | E36: 737907 | F36: 32919 | K36: 49150.14 | M36: 38166.84 | N36: 69670.85 | O36: 878123.23 | R36: 84872.3 | T36: 67288.39 | U36: 29147.2 | V36: 307829.26
A37: 1002 | B37: ARKADELPHIA | C37: 153632 | D37: 22875 | E37: 572489 | F37: 72307 | K37: 107958.16 | M37: 31580.19 | N37: 129145.96 | O37: 539389.82 | R37: 88025.12 | T37: 40460.09 | U37: 1532.77 | V37: 515481.58
A38: 1003 | B38: GURDON | C38: 49334 | D38: 25125 | E38: 485320 | F38: 22554 | K38: 33673.76 | M38: 8377.38 | N38: 52677.96 | O38: 234262.86 | R38: 36655.98 | T38: 17572.26 | U38: 19446.59 | V38: 190510.14
A39: 1101 | B39: CORNING | C39: 44507 | D39: 375 | E39: 618783 | F39: 31384 | K39: 46857.63 | M39: 29301.52 | N39: 79866.58 | O39: 358257.65 | R39: 46518.04 | T39: 27732.68 | U39: 27870.73 | V39: 279039.51
A40: 1104 | B40: PIGGOTT | C40: 13980 | D40: 1875 | E40: 274398 | F40: 30028 | K40: 44833.25 | M40: 12882.38 | N40: 62873.69 | O40: 357567.03 | R40: 35615.24 | T40: 26663.45 | U40: 684.14 | V40: 202674.34
A41: 1106 | B41: RECTOR | C41: 11570 | D41: 2625 | E41: 434582 | F41: 22890 | K41: 34175.72 | M41: 7058.57 | N41: 62873.69 | O41: 203561.93 | R41: 27448.74 | T41: 15246.12 | V41: 179331.83
A42: 1201 | B42: CONCORD | C42: 0 | D42: 750 | E42: 121220 | F42: 15388 | K42: 22974.6 | M42: 6623.64 | N42: 49279.38 | O42: 187746.44 | R42: 22443.66 | T42: 14652.4 | V42: 111085.87
A43: 1202 | B43: HEBER SPRINGS | C43: 40810 | D43: 9000 | E43: 422066 | F43: 63092 | K43: 94200.09 | M43: 17797.85 | N43: 84964.45 | O43: 443498.2 | R43: 76010.3 | T43: 33267.19 | U43: 54392.04 | V43: 406009.52
A44: 1203 | B44: QUITMAN | C44: 0 | D44: 2250 | E44: 268370 | F44: 37201 | K44: 55543.43 | M44: 8500.88 | N44: 49279.38 | O44: 164756.72 | R44: 27360.97 | T44: 12564.51 | V44: 211453.16
A45: 1204 | B45: WEST SIDE | C45: 1739 | D45: 750 | E45: 367299 | F45: 19046 | K45: 28436.82 | M45: 2521.7 | N45: 25489.33 | O45: 250210.36 | R45: 22946.99 | T45: 19527.29 | U45: 15567.49 | V45: 115061.53
A46: 1304 | B46: WOODLAWN | C46: 19706 | D46: 4875 | E46: 169157 | F46: 22542 | K46: 33656.01 | M46: 5320.44 | N46: 23790.04 | O46: 79696.12 | R46: 19056.54 | T46: 10000 | V46: 131632.04
A47: 1305 | B47: CLEVELAND COUNTY | C47: 25123 | D47: 8625 | E47: 241338 | F47: 27397 | K47: 40905.09 | M47: 17325.65 | N47: 52677.96 | O47: 216294.62 | R47: 31525.46 | T47: 16678.05 | U47: 597.93 | V47: 215857.12
A48: 1402 | B48: MAGNOLIA | C48: 162027 | D48: 37500 | E48: 1951207 | F48: 97435 | K48: 145475 | M48: 62503.85 | N48: 156334.59 | O48: 1257875.98 | R48: 145622.92 | T48: 94311.47 | U48: 90341.42 | V48: 757722.83
A49: 1408 | B49: EMERSON-TAYLOR-BRADLEY | C49: 0 | D49: 6375 | E49: 362745 | F49: 52256 | K49: 78020.35 | M49: 24364.8 | N49: 30587.2 | O49: 373266.86 | R49: 59828.33 | T49: 22983.38 | U49: 43868.07 | V49: 311114.46
A50: 1503 | B50: NEMO VISTA | C50: 4561 | D50: 0 | E50: 131689 | F50: 18960 | K50: 28308.26 | M50: 3212.45 | N50: 33985.78 | O50: 113124.33 | R50: 18177.87 | T50: 10000 | V50: 120585.87
A51: 1505 | B51: WONDERVIEW | C51: 4831 | D51: 1125 | E51: 150974 | F51: 17754 | K51: 26507.93 | M51: 4115.23 | N51: 22090.75 | O51: 201703.63 | R51: 18825.59 | T51: 14845.56 | V51: 114259.1
A52: 1507 | B52: SO CONWAY COUNTY | C52: 138129 | D52: 39000 | E52: 1700826 | F52: 88145 | K52: 131604.29 | M52: 39403.72 | N52: 144439.56 | O52: 899985 | R52: 122723.41 | S52: 21240.69 | T52: 67278.34 | U52: 79525.22 | V52: 677580.12
A53: 1601 | B53: BAY | C53: 3455 | D53: 2625 | E53: 168606 | F53: 22608 | K53: 33755.18 | M53: 8181.62 | N53: 11895.02 | O53: 146832.69 | R53: 22675.14 | T53: 11038.63 | V53: 145900.79
A54: 1602 | B54: WESTSIDE CONSOLIDATED | C54: 48604 | D54: 5625 | E54: 523450 | F54: 70529 | K54: 105302.66 | M54: 15211.44 | N54: 59475.11 | O54: 365296.55 | R54: 60659.99 | T54: 32041.83 | V54: 457095.66
A55: 1603 | B55: BROOKLAND | C55: 24325 | D55: 22875 | E55: 565298 | F55: 124624 | K55: 186069.11 | M55: 18709.72 | N55: 124048.1 | O55: 302024.15 | R55: 68993.69 | T55: 23259.81 | V55: 645307.76
A56: 1605 | B56: BUFFALO ISLAND CENTRAL | C56: 0 | D56: 19125 | E56: 229767 | F56: 27927 | K56: 41695.99 | M56: 12794.88 | N56: 37384.35 | O56: 228129.56 | P56: 89809.51 | R56: 29974.03 | T56: 17331.26 | U56: 603.28 | V56: 210103.28
A57: 1608 | B57: JONESBORO | C57: 473150 | D57: 208875 | E57: 5169761 | F57: 261045 | K57: 389753.46 | M57: 60436.99 | N57: 287179.85 | O57: 3724392.26 | R57: 436766.86 | S57: 75975.09 | T57: 287553.09 | V57: 1659558.08
A58: 1611 | B58: NETTLETON | C58: 243200 | D58: 115875 | E58: 3210833 | F58: 154735 | K58: 231027.25 | M58: 29466.17 | N58: 207313.26 | O58: 1404640.73 | P58: 26393.82 | Q58: 96918.66 | R58: 235076.92 | S58: 19271.68 | T58: 105363.33 | V58: 937730.41
A59: 1612 | B59: VALLEY VIEW | C59: 68340 | D59: 34500 | E59: 472207 | F59: 117657 | K59: 175668.07 | M59: 18308.79 | N59: 86663.74 | O59: 267242.87 | R59: 69884.77 | S59: 12319.23 | T59: 20054.61 | V59: 592554.95
A60: 1613 | B60: RIVERSIDE | C60: 10497 | D60: 6750 | E60: 228114 | F60: 30160 | K60: 45030.98 | M60: 7869.26 | N60: 20391.46 | O60: 223276.59 | R60: 31436.98 | T60: 18495.95 | V60: 208021.48
A61: 1701 | B61: ALMA | C61: 188769 | D61: 19500 | E61: 795644 | F61: 124209 | K61: 185450.23 | M61: 32181.16 | N61: 164831.03 | O61: 711783.74 | R61: 109757.82 | T61: 53545.32 | V61: 797860.7
A62: 1702 | B62: CEDARVILLE | C62: 74224 | D62: 4125 | E62: 580178 | F62: 29528 | K62: 44087.04 | M62: 9093.19 | N62: 22090.75 | O62: 391226.75 | R62: 30778.93 | T62: 32379.29 | U62: 618.29 | V62: 209886.46
A63: 1703 | B63: MOUNTAINBURG | C63: 26774 | D63: 1500 | E63: 500762 | F63: 24891 | K63: 37163.63 | M63: 3936.62 | N63: 52677.96 | O63: 245752.68 | R63: 34472.9 | T63: 18434.11 | U63: 20540.08 | V63: 188470.71
A64: 1704 | B64: MULBERRY/PLEASANT VIEW BI-COUNTY | C64: 19163 | D64: 1875 | E64: 322076 | F64: 16280 | K64: 24306.64 | M64: 7621.77 | N64: 33985.78 | O64: 184205.21 | Q64: 69219.78 | R64: 25904.41 | T64: 15126.97 | V64: 143950.81
A65: 1705 | B65: VAN BUREN | C65: 493444 | D65: 202875 | E65: 1990212 | F65: 228384 | K65: 340987.75 | M65: 65200.99 | N65: 254893.35 | O65: 1583437.79 | P65: 105962.09 | R65: 250678.08 | S65: 64257.02 | T65: 118859.54 | V65: 1480934.14
A66: 1802 | B66: EARLE | C66: 14248 | D66: 750 | E66: 560367 | F66: 14723 | K66: 21982.31 | M66: 5539.54 | N66: 18692.17 | O66: 438524.39 | R66: 34896.47 | T66: 32879.28 | U66: 12597.52 | V66: 126352.15
A67: 1803 | B67: WEST MEMPHIS | C67: 125866 | D67: 15750 | E67: 3513055 | F67: 178632 | K67: 266706.41 | M67: 108845.42 | N67: 368745.72 | O67: 3608573.65 | R67: 366071.69 | T67: 273051.84 | V67: 1447538.91
A68: 1804 | B68: MARION | C68: 270784 | D68: 47625 | E68: 3272601 | F68: 157351 | K68: 234932.15 | M68: 44111.45 | N68: 107055.21 | O68: 1146897.16 | R68: 182540.23 | S68: 13362.09 | T68: 86029.76 | V68: 955452.61
A69: 1901 | B69: CROSS COUNTY | C69: 37590 | D69: 1500 | E69: 542676 | F69: 27533 | K69: 41107.71 | M69: 4157.53 | N69: 33985.78 | O69: 296136.28 | R69: 22698.91 | T69: 24008.79 | U69: 533.57 | V69: 209933.24
A70: 1905 | B70: WYNNE | C70: 114234 | D70: 10500 | E70: 838622 | F70: 96652 | K70: 144305.79 | M70: 28705.03 | N70: 88363.03 | O70: 1135980.15 | R70: 133169.09 | T70: 85553.6 | U70: 85814.44 | V70: 669402.41
A71: 2002 | B71: FORDYCE | C71: 70475 | D71: 3375 | E71: 356475 | F71: 25939 | K71: 38728.89 | M71: 18438.76 | N71: 59475.11 | O71: 343476.26 | R71: 32669.91 | T71: 28402.52 | U71: 24379.78 | V71: 254609.63
A72: 2104 | B72: DUMAS | C72: 47436 | D72: 27750 | E72: 668418 | F72: 31958 | K72: 47714.64 | M72: 49553.32 | N72: 90062.31 | O72: 669705.34 | P72: 59276.73 | R72: 81189.14 | T72: 50163.17 | U72: 32175.27 | V72: 340327.79
A73: 2105 | B73: MCGEHEE | C73: 28872 | D73: 15750 | E73: 862546 | F73: 42279 | K73: 63124.3 | M73: 25628.24 | N73: 159733.17 | O73: 664530.69 | R73: 69654.18 | T73: 49720.36 | U73: 37149.42 | V73: 359815.4
A74: 2202 | B74: DREW CENTRAL | C74: 14987 | D74: 16500 | E74: 961816 | F74: 48048 | K74: 71737.86 | M74: 36976.89 | N74: 71370.14 | O74: 243545.03 | R74: 39054.92 | T74: 18268.53 | U74: 1005.78 | V74: 326551.85
A75: 2203 | B75: MONTICELLO | C75: 97506 | D75: 13125 | E75: 520695 | F75: 63106 | K75: 94219.68 | M75: 77433.93 | N75: 156334.59 | O75: 738107.96 | R75: 111142.8 | T75: 54759.88 | U75: 55411.29 | V75: 419262.67
A76: 2301 | B76: CONWAY | C76: 437144 | D76: 234375 | E76: 2848119 | F76: 401949 | K76: 600129.82 | M76: 108151.36 | N76: 426521.55 | O76: 2293409.68 | P76: 31010.76 | Q76: 58597.2 | R76: 427571.77 | S76: 99969.16 | T76: 172030.68 | V76: 2682033.76
A77: 2303 | B77: GREENBRIER | C77: 132973 | D77: 13875 | E77: 873886 | F77: 150071 | K77: 224063.43 | M77: 37149.56 | N77: 135943.12 | O77: 393679.34 | R77: 92600.89 | T77: 33736.01 | V77: 850431.94
A78: 2304 | B78: GUY-PERKINS | C78: 11948 | D78: 1125 | E78: 282625 | F78: 12153 | K78: 18144.74 | M78: 4912.47 | N78: 16992.89 | O78: 83205.28 | R78: 14195.41 | T78: 10000 | V78: 89338.18
A79: 2305 | B79: MAYFLOWER | C79: 69469 | D79: 4875 | E79: 346028 | F79: 38839 | K79: 57988.97 | M79: 7111.15 | N79: 42482.22 | O79: 192085.86 | R79: 36240.9 | T79: 14420.75 | V79: 253035.69
A80: 2306 | B80: MOUNT VERNON/ENOLA | C80: 7467 | D80: 1500 | E80: 325326 | F80: 20146 | K80: 30078.6 | M80: 5006.05 | N80: 25489.33 | O80: 150911.55 | R80: 19631.77 | T80: 11107.22 | V80: 115861.82
A81: 2307 | B81: VILONIA | C81: 77670 | D81: 24750 | E81: 712443 | F81: 116117 | K81: 173367.61 | M81: 19178.67 | N81: 130845.25 | O81: 356503.36 | R81: 95667.53 | T81: 26778.48 | V81: 704295.71
A82: 2402 | B82: CHARLESTON | C82: 54218 | D82: 4875 | E82: 215992 | F82: 35753 | K82: 53381.32 | M82: 12923.86 | N82: 50978.67 | O82: 174043.92 | R82: 30342.49 | T82: 13727.78 | V82: 206738.71
A83: 2403 | B83: COUNTY LINE | C83: 49537 | D83: 1500 | E83: 414728 | F83: 22216 | K83: 33169.35 | M83: 5816.01 | N83: 25489.33 | O83: 184685.71 | R83: 25643.52 | T83: 13824.04 | V83: 137057.19
A84: 2404 | B84: OZARK | C84: 221550 | D84: 6750 | E84: 525103 | F84: 66910 | K84: 99899.82 | M84: 22329.78 | N84: 134243.83 | O84: 541156.04 | R84: 92099.13 | T84: 40592.58 | U84: 58634.94 | V84: 444254.86
A85: 2501 | B85: MAMMOTH SPRING | C85: 54799 | D85: 375 | E85: 322076 | F85: 16580 | K85: 24755.35 | M85: 15074.45 | N85: 44181.51 | O85: 192268.65 | R85: 25389.15 | T85: 14422.24 | U85: 392.27 | V85: 142805.79
A86: 2502 | B86: SALEM | C86: 47967 | D86: 375 | E86: 281561 | F86: 32912 | K86: 49138.5 | M86: 12346.79 | N86: 78167.29 | O86: 275281.4 | R86: 38410.78 | T86: 21348.24 | U86: 29423.27 | V86: 220415.67
A87: 2503 | B87: VIOLA | C87: 0 | D87: 1875 | E87: 307737 | F87: 15547 | K87: 23212.73 | M87: 6861.9 | N87: 32286.49 | O87: 173663.12 | R87: 25295.64 | T87: 14324.26 | U87: 13240.58 | V87: 102911.15
A88: 2601 | B88: CUTTER-MORNING STAR | C88: 57565 | D88: 9750 | E88: 537161 | F88: 27131 | K88: 40507.19 | M88: 6659.87 | N88: 22090.75 | O88: 231970.64 | R88: 29571.69 | T88: 19089.41 | V88: 184295.29
A89: 2602 | B89: FOUNTAIN LAKE | C89: 65830 | D89: 7875 | E89: 362558 | F89: 48208 | K89: 71977.21 | M89: 12751.96 | N89: 69670.85 | O89: 309905.65 | R89: 64709.41 | T89: 23290.9 | U89: 40669.73 | V89: 321083.25
A90: 2603 | B90: HOT SPRINGS | C90: 378261 | D90: 152250 | E90: 3144653 | F90: 142024 | K90: 212049.37 | M90: 34334.86 | N90: 275284.82 | O90: 2229006.85 | Q90: 14391.8 | R90: 295709.64 | S90: 290305.58 | T90: 167520.6 | V90: 1072251.62
A91: 2604 | B91: JESSIEVILLE | C91: 32972 | D91: 4875 | E91: 595620 | F91: 30673 | K91: 45796.17 | M91: 4534.87 | N91: 35685.07 | O91: 341412.16 | R91: 40807.27 | T91: 27429.54 | U91: 27237.69 | V91: 176379.77
A92: 2605 | B92: LAKE HAMILTON | C92: 332262 | D92: 97125 | E92: 1423233 | F92: 156788 | K92: 234091.67 | M92: 30854.69 | N92: 207313.26 | O92: 1146602.14 | R92: 237688.19 | S92: 19799.02 | T92: 81714.24 | V92: 1006523.18
A93: 2606 | B93: LAKESIDE | C93: 412339 | D93: 63750 | E93: 833112 | F93: 138619 | K93: 206964.24 | M93: 31909.73 | N93: 118950.23 | O93: 488776.25 | R93: 116148.15 | S93: 48511.72 | T93: 36663.52 | V93: 796238.22
A94: 2607 | B94: MOUNTAIN PINE | C94: 84901 | D94: 2625 | E94: 534955 | F94: 23955 | K94: 35765.48 | M94: 9688.1 | N94: 47580.09 | O94: 230355.14 | R94: 39346.36 | T94: 17312.16 | U94: 21459.6 | V94: 186128.21
A95: 2703 | B95: POYEN | C95: 22307 | D95: 1875 | E95: 141607 | F95: 21900 | K95: 32697.99 | M95: 5792.24 | N95: 15293.6 | O95: 43936.08 | R95: 6959.77 | T95: 10000 | V95: 135634.75
A96: 2705 | B96: SHERIDAN | C96: 263561 | D96: 67875 | E96: 958189 | F96: 168121 | K96: 251012.72 | M96: 33565.12 | N96: 163131.74 | O96: 785831.4 | R96: 143028.22 | S96: 11164.55 | T96: 58782.62 | V96: 1042237.22
A97: 2803 | B97: MARMADUKE | C97: 21130 | D97: 0 | E97: 197809 | F97: 23377 | K97: 34902.34 | M97: 14608.16 | N97: 30587.2 | O97: 189813.66 | R97: 24990.52 | T97: 14222.37 | U97: 534.57 | V97: 159454.42
A98: 2807 | B98: GREENE COUNTY TECH | C98: 100600 | D98: 41250 | E98: 918517 | F98: 136255 | K98: 203435.2 | M98: 67915.65 | N98: 139341.7 | O98: 748938.64 | Q98: 43747.49 | R98: 122646.88 | S98: 13847.89 | T98: 56178.54 | V98: 881716.94
A99: 2808 | B99: PARAGOULD | C99: 204983 | D99: 80625 | E99: 2333948 | F99: 123308 | K99: 184105.34 | M99: 46256.41 | N99: 130845.25 | O99: 1068520.04 | P99: 33170.51 | R99: 171792.99 | S99: 41347.54 | T99: 80150.63 | U99: 2496.31 | V99: 854838.59
A100: 2901 | B100: BLEVINS | C100: 11556 | D100: 7500 | E100: 338621 | F100: 14215 | K100: 21223.85 | M100: 6277.73 | N100: 18692.17 | O100: 297806.2 | R100: 37487.4 | T100: 22221.33 | U100: 14101.98 | V100: 137542.94
A101: 2903 | B101: HOPE | C101: 267185 | D101: 149250 | E101: 1889439 | F101: 83820 | K101: 125147.33 | M101: 40526.95 | N101: 200516.1 | O101: 1049609.75 | R101: 116604.37 | S101: 12636.08 | T101: 82068.88 | U101: 73678.37 | V101: 634052.6
A102: 2906 | B102: SPRING HILL | C102: 0 | D102: 4875 | E102: 189544 | F102: 25026 | K102: 37365.02 | M102: 3228.86 | N102: 20391.46 | O102: 92782.94 | R102: 16655.9 | T102: 10000 | V102: 140301.84
A103: 3001 | B103: BISMARCK | C103: 35052 | D103: 11250 | E103: 371374 | F103: 41230 | K103: 61557.8 | M103: 8100.17 | N103: 39083.64 | O103: 296929.18 | R103: 39395.93 | T103: 23421.62 | V103: 265435.56
A104: 3002 | B104: GLEN ROSE | C104: 74582 | D104: 750 | E104: 273847 | F104: 37989 | K104: 56719.37 | M104: 13317.24 | N104: 27188.62 | O104: 220668.42 | R104: 31352.6 | T104: 19357.59 | V104: 268338.83
A105: 3003 | B105: MAGNET COVE | C105: 0 | D105: 375 | E105: 197258 | F105: 26850 | K105: 40087.87 | M105: 9200.44 | N105: 13594.31 | O105: 101796.1 | R105: 15661.11 | T105: 10000 | V105: 184365.6
A106: 3004 | B106: MALVERN | C106: 90288 | D106: 51750 | E106: 1500080 | F106: 73193 | K106: 109280.41 | M106: 40544.77 | N106: 149537.43 | O106: 865471.14 | R106: 111725.07 | S106: 39077.18 | T106: 71082.59 | V106: 543732.03
A107: 3005 | B107: OUACHITA | C107: 51873 | D107: 0 | E107: 159790 | F107: 21604 | K107: 32255.41 | M107: 3422.45 | N107: 16992.89 | O107: 92819.56 | R107: 11904.01 | T107: 10000 | V107: 126336.56
A108: 3102 | B108: DIERKS | C108: 0 | D108: 15750 | E108: 501865 | F108: 22571 | K108: 33699.47 | M108: 3107.42 | N108: 37384.35 | O108: 134384.3 | R108: 20710.55 | T108: 10000 | V108: 133693.16
A109: 3104 | B109: MINERAL SPRINGS | C109: 13307 | D109: 9750 | E109: 514424 | F109: 16569 | K109: 24738.82 | M109: 3690.25 | N109: 23790.04 | O109: 231213.08 | R109: 29587.46 | T109: 18365.99 | U109: 14172.99 | V109: 135118.97
A110: 3105 | B110: NASHVILLE | C110: 127865 | D110: 80625 | E110: 1416252 | F110: 72983 | K110: 108966.99 | M110: 20813.05 | N110: 107055.21 | O110: 545235.76 | P110: 43503.44 | R110: 79038.13 | S110: 14171.3 | T110: 43904.13 | U110: 64802.48 | V110: 460436.13
A111: 3201 | B111: BATESVILLE | C111: 215005 | D111: 247500 | E111: 1120734 | F111: 125947 | K111: 188045.13 | M111: 106255.91 | N111: 290578.42 | O111: 891821.77 | P111: 135661.56 | R111: 144053.62 | S111: 24199.34 | T111: 66896.33 | V111: 836163.38
A112: 3209 | B112: SOUTHSIDE | C112: 89845 | D112: 21000 | E112: 571938 | F112: 79408 | K112: 118559.38 | M112: 22505.23 | N112: 152936.01 | O112: 296857.35 | R112: 42472 | T112: 23494.75 | V112: 473421.39
A113: 3211 | B113: MIDLAND | C113: 0 | D113: 1125 | E113: 163647 | F113: 18193 | K113: 27162.93 | M113: 26045.63 | N113: 73069.42 | O113: 201000.53 | R113: 28441.52 | T113: 15077.22 | V113: 141632.96
A114: 3212 | B114: CEDAR RIDGE | C114: 29903 | D114: 3750 | E114: 508483 | F114: 26175 | K114: 39080.88 | M114: 14419.17 | N114: 90062.31 | O114: 293700.19 | R114: 40584.92 | T114: 22921.39 | V114: 214705.84
A115: 3301 | B115: CALICO ROCK | C115: 0 | D115: 0 | E115: 266926 | F115: 14161 | K115: 21143.05 | M115: 12476.47 | N115: 44181.51 | O115: 129382.38 | R115: 17350.77 | T115: 10666.06 | V115: 116865.58
A116: 3302 | B116: MELBOURNE | C116: 13266 | D116: 3375 | E116: 210482 | F116: 31185 | K116: 46561.35 | M116: 22859.34 | N116: 71370.14 | O116: 235763.49 | R116: 36853.23 | T116: 17684.83 | U116: 26784.19 | V116: 211054.67
A117: 3306 | B117: IZARD COUNTY CONSOLIDATED | C117: 99445 | D117: 0 | E117: 506277 | F117: 25726 | K117: 38410.58 | M117: 16670.99 | N117: 62873.69 | O117: 321204.21 | R117: 38882.15 | T117: 24093.79 | U117: 22644.71 | V117: 172254.21
A118: 3403 | B118: NEWPORT | C118: 58053 | D118: 7125 | E118: 977258 | F118: 46361 | K118: 69218.86 | M118: 34263.01 | N118: 108754.49 | O118: 704247.06 | R118: 104118.01 | T118: 52927.55 | U118: 40626.11 | V118: 378000.1
A119: 3405 | B119: JACKSON COUNTY | C119: 12134 | D119: 2625 | E119: 659594 | F119: 33095 | K119: 49412.75 | M119: 9533.09 | N119: 61174.4 | O119: 217562.83 | R119: 36599.69 | T119: 16319.57 | U119: 28309.3 | V119: 224801.3
A120: 3505 | B120: PINE BLUFF | C120: 101649 | D120: 9750 | E120: 2574402 | F120: 110373 | K120: 164792.62 | M120: 35643.76 | N120: 231103.31 | O120: 2691147.52 | Q120: 380881.81 | R120: 247959.01 | T120: 203308.89 | U120: 98663.81 | V120: 1030548.79
A121: 3509 | B121: WATSON CHAPEL | C121: 212446 | D121: 6000 | E121: 980573 | F121: 63353 | K121: 94588.81 | M121: 41997.4 | N121: 105355.92 | O121: 934808.14 | R121: 129783.36 | T121: 69999.03 | U121: 56452.9 | V121: 456823.02
A122: 3510 | B122: WHITE HALL | C122: 108353 | D122: 63750 | E122: 1011085 | F122: 124107 | K122: 185297.19 | M122: 25471.78 | N122: 95160.18 | O122: 562991.47 | R122: 104829.25 | S122: 58204.75 | T122: 42210.44 | V122: 748743.27
A123: 3544 | B123: FRIENDSHIP ASPIRE ACADEMIES ARKANSAS | C123: 0 | D123: 0 | M123: 12382.92 | N123: 8496.44 | O123: 2015560.07 | R123: 190498.88 | T123: 149589.11 | V123: 357065.02
A124: 3601 | B124: CLARKSVILLE | C124: 205694 | D124: 216000 | E124: 2072537 | F124: 101380 | K124: 151365.72 | M124: 21840.42 | N124: 195418.24 | O124: 763075.29 | P124: 153817.77 | R124: 112940.24 | S124: 25883.91 | T124: 62985.68 | U124: 2143.42 | V124: 628543.8
A125: 3604 | B125: LAMAR | C125: 0 | D125: 12000 | E125: 924314 | F125: 48730 | K125: 72756.48 | M125: 10626.23 | N125: 76468 | O125: 391185.59 | R125: 39388.77 | T125: 34274.11 | V125: 295515.44
A126: 3606 | B126: WESTSIDE | C126: 37413 | D126: 2250 | E126: 459951 | F126: 23326 | K126: 34827.05 | M126: 6853.16 | N126: 49279.38 | O126: 325722.92 | R126: 27431.6 | T126: 24323.31 | U126: 20370.9 | V126: 158489.33
A127: 3704 | B127: LAFAYETTE COUNTY | C127: 25800 | D127: 375 | E127: 433479 | F127: 18381 | K127: 27443.3 | M127: 29820.54 | N127: 74768.71 | O127: 345378.79 | R127: 37632.11 | T127: 27211.58 | U127: 17056.6 | V127: 188457.22
A128: 3804 | B128: HOXIE | C128: 32039 | D128: 2625 | E128: 664006 | F128: 32524 | K128: 48559.41 | M128: 13503.18 | N128: 22090.75 | O128: 236430.39 | R128: 26571.33 | T128: 18210.26 | U128: 27845.4 | V128: 262069.56
A129: 3806 | B129: SLOAN-HENDRIX | C129: 58661 | D129: 3000 | E129: 620989 | F129: 32609 | K129: 48687.35 | M129: 18087.42 | N129: 23790.04 | O129: 225714.44 | R129: 29388.13 | T129: 17981.34 | U129: 26005.57 | V129: 218859.91
A130: 3809 | B130: HILLCREST | C130: 0 | D130: 0 | E130: 379756 | F130: 16603 | K130: 24788.4 | M130: 11342.29 | N130: 30587.2 | O130: 320707.41 | R130: 39404.39 | T130: 24006.04 | U130: 14188.99 | V130: 129855.55
A131: 3810 | B131: LAWRENCE COUNTY | C131: 10322 | D131: 8625 | E131: 316274 | F131: 40422 | K131: 60352.48 | M131: 24227.17 | N131: 57775.82 | O131: 423250 | R131: 48883.81 | T131: 33031.93 | U131: 830.77 | V131: 308195.11
A132: 3840 | B132: IMBODEN AREA CHARTER SCHOOL | D132: 0 | M132: - | N132: - | O132: 31121.41 | R132: 2521.63 | T132: 10000 | V132: 19194.88
A133: 3904 | B133: LEE COUNTY | C133: 47261 | D133: 6750 | E133: 960393 | F133: 26134 | K133: 39019.05 | M133: 20606.12 | N133: 90062.31 | O133: 926049.99 | R133: 80153.94 | T133: 69463.83 | U133: 22382.5 | V133: 255031.91
A134: 4003 | B134: STAR CITY | C134: 80366 | D134: 28125 | E134: 987925 | F134: 56986 | K134: 85083.34 | M134: 48135.78 | N134: 98558.76 | O134: 421185.59 | P134: 20957.41 | R134: 67636.89 | T134: 31593.49 | U134: 48024.17 | V134: 412198.84
A135: 4101 | B135: ASHDOWN | C135: 38859 | D135: 3750 | E135: 1002627 | F135: 51945 | K135: 77556.34 | M135: 21905.73 | N135: 49279.38 | O135: 492358.81 | R135: 69277.58 | T135: 36987.91 | U135: 44154.97 | V135: 334974.64
A136: 4102 | B136: FOREMAN | C136: 26497 | D136: 4125 | E136: 398183 | F136: 19707 | K136: 29424.21 | M136: 15925.53 | N136: 15293.6 | O136: 131336.36 | R136: 22749.17 | T136: 10000 | V136: 128094.95
A137: 4201 | B137: BOONEVILLE | C137: 180330 | D137: 6750 | E137: 1000421 | F137: 50765 | K137: 75793.96 | M137: 16034.69 | N137: 96859.47 | O137: 498608.25 | R137: 68033.74 | T137: 37271.29 | U137: 43879.34 | V137: 348080.52
A138: 4202 | B138: MAGAZINE | C138: 68222 | D138: 1125 | E138: 357372 | F138: 18180 | K138: 27143.34 | M138: 5549.8 | N138: 30587.2 | O138: 140311.62 | R138: 21640.58 | T138: 10524.9 | V138: 144544.21
A139: 4203 | B139: PARIS | C139: 145884 | D139: 7500 | E139: 765482 | F139: 38147 | K139: 56955.66 | M139: 15328.27 | N139: 44181.51 | O139: 309443.69 | R139: 48420.98 | T139: 23228.71 | U139: 34996.63 | V139: 263382.19
A140: 4204 | B140: SCRANTON | C140: 55850 | D140: 3000 | E140: 125077 | F140: 18327 | K140: 27362.49 | M140: 3720.07 | N140: 11895.02 | O140: 94235.51 | R140: 14646.04 | T140: 10000 | V140: 113649.15
A141: 4301 | B141: LONOKE | C141: 65997 | D141: 35250 | E141: 499757 | F141: 60603 | K141: 90483.73 | M141: 25646.61 | N141: 54377.24 | O141: 428511.14 | R141: 64417.79 | S141: 17815.75 | T141: 32143 | U141: 1345.85 | V141: 425360.06
A142: 4302 | B142: ENGLAND | C142: 32139 | D142: 12375 | E142: 483114 | F142: 24616 | K142: 36753.49 | M142: 13369.52 | N142: 28887.91 | O142: 247339.64 | R142: 22876.13 | T142: 20470.69 | U142: 506.79 | V142: 212370.07
A143: 4303 | B143: CARLISLE | C143: 18388 | D143: 9375 | E143: 207176 | F143: 24873 | K143: 37136.69 | M143: 8490.69 | N143: 45880.8 | O143: 120937.09 | R143: 19994.43 | T143: 10000 | V143: 172601.4
A144: 4304 | B144: CABOT | C144: 989258 | D144: 100875 | E144: 2790264 | F144: 423129 | K144: 631752.27 | M144: 96911.88 | N144: 446913.02 | O144: 1342307.18 | R144: 285413.17 | S144: 101731.69 | T144: 100687.64 | V144: 2366277.67
A145: 4401 | B145: HUNTSVILLE | C145: 157590 | D145: 60375 | E145: 1429964 | F145: 89814 | K145: 134096.35 | M145: 16141.29 | N145: 120649.52 | O145: 827460 | P145: 46356.35 | R145: 126218.54 | S145: 342423.59 | T145: 65885.06 | U145: 1996.06 | V145: 541247.89
A146: 4501 | B146: FLIPPIN | C146: 26615 | D146: 0 | E146: 594517 | F146: 30370 | K146: 45344.4 | M146: 21772.49 | N146: 32286.49 | O146: 313834.24 | R146: 50351.78 | T146: 23540.97 | U146: 26542.52 | V146: 212407.28
A147: 4502 | B147: YELLVILLE-SUMMIT | C147: 44541 | D147: 1500 | E147: 790851 | F147: 39522 | K147: 59008.81 | M147: 19373.54 | N147: 39083.64 | O147: 346211.79 | R147: 48214.45 | T147: 27792.93 | U147: 34013.77 | V147: 272595.91
A148: 4602 | B148: GENOA CENTRAL | C148: 86798 | D148: 4500 | E148: 241889 | F148: 49427 | K148: 73797.13 | M148: 8403.2 | N148: 33985.78 | O148: 271779.68 | R148: 34531.23 | T148: 20386.41 | U148: 1030.53 | V148: 261706.36
A149: 4603 | B149: FOUKE | C149: 75668 | D149: 3000 | E149: 353742 | F149: 42253 | K149: 63085.73 | M149: 23522.18 | N149: 61174.4 | O149: 288513.83 | R149: 38882.54 | T149: 21620.33 | U149: 900.85 | V149: 268473.38
A150: 4605 | B150: TEXARKANA | C150: 459975 | D150: 36375 | E150: 2871109 | F150: 149402 | K150: 223065.01 | M150: 53500.26 | N150: 67971.56 | O150: 2297583.36 | R150: 307163.55 | S150: 401.48 | T150: 172343.74 | V150: 1119869.05
A151: 4701 | B151: ARMOREL | C151: 0 | D151: 10500 | E151: 137199 | F151: 17161 | K151: 25622.76 | M151: 2850.23 | N151: 10195.73 | O151: 42001.13 | R151: 7941.51 | T151: 10000 | V151: 100784.11
A152: 4702 | B152: BLYTHEVILLE | C152: 106346 | D152: 18750 | E152: 1103000 | F152: 51897 | K152: 77484.72 | M152: 12459.71 | N152: 95160.18 | O152: 1373437.72 | R152: 124583.35 | T152: 107632.51 | U152: 46222.31 | V152: 547517.3
A153: 4706 | B153: RIVERCREST | C153: 0 | D153: 10125 | E153: 1021974 | F153: 46647 | K153: 69645.53 | M153: 27914.03 | N153: 45880.8 | O153: 406245.77 | R153: 42418.83 | T153: 30446.92 | U153: 40091.9 | V153: 368860.59
A154: 4708 | B154: GOSNELL | C154: 43876 | D154: 17625 | E154: 1026893 | F154: 49312 | K154: 73625.12 | M154: 39589.62 | N154: 54377.24 | O154: 300016.19 | R154: 48649.27 | T154: 22547.65 | U154: 40623.95 | V154: 322248.67
A155: 4712 | B155: MANILA | C155: 23481 | D155: 2625 | E155: 283214 | F155: 40367 | K155: 60269.84 | M155: 23227.1 | N155: 45880.8 | O155: 180926.34 | R155: 23547.27 | T155: 15852.03 | V155: 277332.74
A156: 4713 | B156: OSCEOLA | C156: 35697 | D156: 9000 | E156: 1216608 | F156: 33409 | K156: 49881.65 | M156: 6290.7 | N156: 88363.03 | O156: 875203.09 | R156: 86848.87 | T156: 68340.77 | U156: 28709.04 | V156: 309646.09
A157: 4801 | B157: BRINKLEY | C157: 33399 | D157: 4500 | E157: 347445 | F157: 16154 | K157: 24118.1 | M157: 14986.45 | N157: 44181.51 | O157: 427360.86 | R157: 49491.98 | T157: 32001.33 | U157: 13647.02 | V157: 144251.61
A158: 4802 | B158: CLARENDON | C158: 8230 | D158: 2625 | E158: 623181 | F158: 16687 | K158: 24913.89 | M158: 11423.28 | N158: 42482.22 | O158: 250988.26 | R158: 31057 | T158: 18826.83 | U158: 14752.33 | V158: 142417.11
A159: 4901 | B159: CADDO HILLS | C159: 220 | D159: 9375 | E159: 490835 | F159: 22405 | K159: 33451.55 | M159: 5950.7 | N159: 27188.62 | O159: 259041.46 | R159: 33316.09 | T159: 19432.21 | U159: 19437.64 | V159: 159682.58
A160: 4902 | B160: MOUNT IDA | C160: 17037 | D160: 3000 | E160: 337518 | F160: 16850 | K160: 25158.14 | M160: 9986.91 | N160: 23790.04 | O160: 196039.12 | R160: 23416.25 | T160: 14705.07 | V160: 108995.08
A161: 5006 | B161: PRESCOTT | C161: 78992 | D161: 14250 | E161: 719156 | F161: 35527 | K161: 53043.41 | M161: 39548.68 | N161: 81565.87 | O161: 350444.99 | R161: 52245.03 | T161: 26287.19 | U161: 32336.51 | V161: 261367.92
A162: 5008 | B162: NEVADA | C162: 0 | D162: 2250 | E162: 357372 | F162: 17173 | K162: 25640.51 | M162: 9160.86 | N162: 23790.04 | O162: 208127.8 | R162: 24726.96 | T162: 16412.04 | V162: 137435.3
A163: 5102 | B163: JASPER | C163: 0 | D163: 1125 | E163: 294234 | F163: 32885 | K163: 49099.33 | M163: 14528.96 | N163: 22090.75 | O163: 306407.18 | R163: 39102.06 | T163: 25329.62 | U163: 29591.14 | V163: 241930.41
A164: 5106 | B164: DEER/MT. JUDEA | C164: 0 | D164: 0 | E164: 270235 | F164: 13521 | K164: 20186.87 | M164: 4838.72 | N164: 10195.73 | O164: 146689.2 | R164: 17867.33 | T164: 11833.77 | U164: 69502.18 | V164: 105921.5
A165: 5201 | B165: BEARDEN | C165: 19878 | D165: 750 | E165: 354063 | F165: 18418 | K165: 27498.39 | M165: 7751.3 | N165: 32286.49 | O165: 158070.96 | R165: 21043.22 | T165: 12455.16 | V165: 140998.69
A166: 5204 | B166: CAMDEN-FAIRVIEW | C166: 81914 | D166: 9750 | E166: 1602659 | F166: 76771 | K166: 114622.64 | M166: 59097.03 | N166: 100258.05 | O166: 1082212.49 | R166: 138289.3 | T166: 85204.4 | V166: 580950.3
A167: 5205 | B167: HARMONY GROVE | C167: 26873 | D167: 1875 | E167: 213237 | F167: 33689 | K167: 50299.75 | M167: 15028.84 | N167: 33985.78 | O167: 272143.79 | R167: 31914.74 | T167: 22528.46 | U167: 28980.08 | V167: 215500.84
A168: 5301 | B168: EAST END | C168: 11325 | D168: 10500 | E168: 332220 | F168: 26299 | K168: 39265.75 | M168: 10669.68 | N168: 33985.78 | O168: 167122.93 | R168: 26852.65 | T168: 12788 | V168: 180934.91
A169: 5303 | B169: PERRYVILLE | C169: 0 | D169: 750 | E169: 297540 | F169: 34972 | K169: 52215.17 | M169: 7081.57 | N169: 50978.67 | O169: 203879.84 | R169: 30448.99 | T169: 16769.78 | V169: 240086
A170: 5401 | B170: BARTON | C170: 0 | D170: 2625 | E170: 608856 | F170: 25903 | K170: 38675.02 | M170: 9325.52 | N170: 25489.33 | O170: 245312.29 | R170: 24888.6 | T170: 18370.22 | U170: 21699.63 | V170: 194117.53
A171: 5403 | B171: HELENA-W HELENA | C171: 42808 | D171: 3375 | E171: 1477782 | F171: 38640 | K171: 57691.46 | M171: 35786.48 | N171: 224306.15 | O171: 1166635.56 | R171: 42920.78 | T171: 91406.64 | U171: 32410.01 | V171: 381904.64
A172: 5404 | B172: MARVELL-ELAINE | C172: 0 | D172: 0 | E172: 325641 | F172: 8421 | K172: 12572.34 | M172: 14738.11 | N172: 49279.38 | O172: 465781.25 | R172: 32442.71 | T172: 36501.99 | U172: 7720.61 | V172: 147621.38
A173: 5440 | B173: KIPP DELTA | D173: 0 | M173: 11297.71 | N173: 3398.57 | O173: 2423784.82 | R173: 208145.77 | T173: 181484.37 | U173: 43062.61 | V173: 405281.73
A174: 5502 | B174: CENTERPOINT | C174: 56836 | D174: 33750 | E174: 777615 | F174: 39333 | K174: 58726 | M174: 13226.29 | N174: 67971.56 | O174: 354904.81 | P174: 36350 | R174: 55371.47 | T174: 26607.31 | U174: 33638.83 | V174: 247224.87
A175: 5503 | B175: KIRBY | C175: 0 | D175: 3000 | E175: 302222 | F175: 15106 | K175: 22553.44 | M175: 6400.74 | N175: 15293.6 | O175: 171132.28 | R175: 26896.81 | T175: 12836.77 | V175: 107111.44
A176: 5504 | B176: SOUTH PIKE COUNTY | C176: 48868 | D176: 4875 | E176: 548191 | F176: 27213 | K176: 40630.84 | M176: 11633.26 | N176: 40782.93 | O176: 204421.11 | R176: 35325.59 | T176: 15333.8 | U176: 23640.18 | V176: 205773.76
A177: 5602 | B177: HARRISBURG | C177: 50492 | D177: 9000 | E177: 872473 | F177: 43761 | K177: 65336.61 | M177: 25689.33 | N177: 35685.07 | O177: 379805.73 | P177: 24111.13 | R177: 55660.09 | T177: 28810.7 | U177: 39295.83 | V177: 332593.36
A178: 5604 | B178: MARKED TREE | C178: 8697 | D178: 4125 | E178: 394874 | F178: 19964 | K178: 29806.81 | M178: 9168.68 | N178: 18692.17 | O178: 286058.35 | R178: 29075.07 | T178: 23680.34 | U178: 16245.41 | V178: 168903.65
A179: 5605 | B179: TRUMANN | C179: 39505 | D179: 33375 | E179: 1143811 | F179: 57422 | K179: 85734.06 | M179: 19498.98 | N179: 45880.8 | O179: 760454.98 | R179: 100404.54 | T179: 57042.39 | U179: 1206.08 | V179: 437617.43
A180: 5608 | B180: EAST POINSETT COUNTY | C180: 25438 | D180: 4125 | E180: 431273 | F180: 21754 | K180: 32480.07 | M180: 10526.25 | N180: 25489.33 | O180: 211699.46 | R180: 25290.87 | T180: 17498.09 | U180: 482.23 | V180: 171344.08
A181: 5703 | B181: MENA | C181: 230753 | D181: 8250 | E181: 593978 | F181: 69493 | K181: 103756.98 | M181: 24466.27 | N181: 100258.05 | O181: 788608.41 | R181: 107414.86 | T181: 60092.08 | U181: 58582.34 | V181: 450963.48
A182: 5706 | B182: OUACHITA RIVER | C182: 102703 | D182: 3000 | E182: 595620 | F182: 29778 | K182: 44459.84 | M182: 7421.18 | N182: 42482.22 | O182: 205241.48 | R182: 32519.56 | T182: 15413.41 | U182: 26108.91 | V182: 192018.92
A183: 5707 | B183: COSSATOT RIVER | C183: 0 | D183: 38625 | E183: 715847 | F183: 34126 | K183: 50951.69 | M183: 6344.61 | N183: 39083.64 | O183: 382205.44 | P183: 28656.06 | R183: 54618.64 | S183: 14392.04 | T183: 28693.85 | U183: 29877.8 | V183: 246608.46
A184: 5801 | B184: ATKINS | C184: 58144 | D184: 1500 | E184: 468930 | F184: 36103 | K184: 53902.87 | M184: 10467.53 | N184: 64572.98 | O184: 351299.95 | R184: 48521.39 | T184: 26749.25 | U184: 795.58 | V184: 254364.15
A185: 5802 | B185: DOVER | C185: 114957 | D185: 3000 | E185: 396720 | F185: 47518 | K185: 70946.96 | M185: 15079.36 | N185: 84964.45 | O185: 311177.28 | R185: 46420.58 | T185: 25704.22 | V185: 313357.98
A186: 5803 | B186: HECTOR | C186: 0 | D186: 375 | E186: 544882 | F186: 27400 | K186: 40909.98 | M186: 11043.08 | N186: 25489.33 | O186: 209104.57 | R186: 25531.9 | T186: 17019.9 | V186: 180992.57
A187: 5804 | B187: POTTSVILLE | C187: 41820 | D187: 24375 | E187: 408842 | F187: 73716 | K187: 110062.12 | M187: 18911.17 | N187: 84964.45 | O187: 235045.17 | R187: 37585.46 | T187: 20549.35 | V187: 429713.71
A188: 5805 | B188: RUSSELLVILLE | C188: 308300 | D188: 392250 | E188: 1934561 | F188: 218942 | K188: 326891.77 | M188: 72338.76 | N188: 271886.24 | O188: 1503694.4 | R188: 221133.85 | S188: 11894.47 | T188: 117353.63 | V188: 1369059.7
A189: 5901 | B189: DES ARC | C189: 505 | D189: 3000 | E189: 534161 | F189: 25959 | K189: 38758.28 | M189: 10262.75 | N189: 20391.46 | O189: 165887.2 | R189: 25235.08 | T189: 13089.82 | V189: 161363.05
A190: 5903 | B190: HAZEN | C190: 14853 | D190: 1875 | E190: 414728 | F190: 20623 | K190: 30791.15 | M190: 8998.49 | N190: 30587.2 | O190: 211680.61 | R190: 31752.2 | T190: 15896.79 | U190: 18609.99 | V190: 139978.21
A191: 6001 | B191: LITTLE ROCK | C191: 962608 | D191: 1275375 | E191: 15628407 | F191: 798539 | K191: 1192257.01 | M191: 240087.96 | N191: 1593933.13 | O191: 10439261.6 | Q191: 107428.19 | R191: 1166877.15 | S191: 67778.18 | T191: 783058.21 | V191: 5519216.25
A192: 6002 | B192: NORTH LITTLE ROCK | C192: 787807 | D192: 234000 | E192: 5903256 | F192: 294389 | K192: 439537.78 | M192: 83132.25 | N192: 249795.49 | O192: 3682149.32 | R192: 378085.33 | S192: 24882.59 | T192: 276201.26 | V192: 1970619.7
A193: 6003 | B193: PULASKI COUNTY | C193: 512380 | D193: 304125 | E193: 3378732 | F193: 471947 | K193: 704640.36 | M193: 110402.2 | N193: 365347.14 | O193: 4657340.57 | P193: 18443.12 | R193: 638779 | S193: 31034.97 | T193: 349351.22 | V193: 3112617.66
A194: 6004 | B194: JACKSONVILLE NORTH PULASKI | C194: 453440 | D194: 108750 | E194: 1794807 | F194: 166592 | K194: 248730.01 | M194: 56803.58 | N194: 339857.81 | O194: 2204318.85 | R194: 303850.62 | S194: 23162.93 | T194: 165289.71 | V194: 1220705.96
A195: 6040 | B195: ACADEMICS PLUS | C195: 0 | D195: 0 | K195: 121435.87 | N195: - | O195: 335297.27 | R195: 89240.82 | T195: 10000 | V195: 453520.77
A196: 6041 | B196: LISA ACADEMY | C196: 0 | D196: 0 | K196: 260622.25 | M196: 51849.82 | N196: 42482.22 | O196: 2654890.79 | R196: 328075.27 | S196: 22947.32 | T196: 196290.12 | V196: 1151263.24
A197: 6043 | B197: ARKANSAS VIRTUAL ACADEMY | C197: 0 | D197: 0 | N197: - | O197: 1740328.43 | R197: 332756.35 | T197: 117726.3 | V197: 1171429.74
A198: 6047 | B198: ESTEM | C198: 0 | D198: 0 | K198: 145764.55 | M198: 20058.76 | N198: 28887.91 | O198: 1477332.97 | R198: 213689.66 | S198: 10604.6 | T198: 110816.04 | V198: 720210.57
A199: 6050 | B199: ARKANSAS LIGHTHOUSE ACADEMIES | C199: 0 | D199: 0 | M199: 7270.88 | N199: - | O199: 1189825 | R199: 49700.69 | T199: 88173.12 | V199: 167462.82
A200: 6052 | B200: GRADUATE ARKANSAS | C200: 0 | D200: 0 | M200: - | O200: 155842.27 | R200: 11839.05 | T200: 11470.12 | V200: 100001.3
... 61 more rows
